Workbook

Sheet Archimedes
A1: Match | B1: Red 1 ID | C1: Red 2 ID | D1: Red 3 ID | E1: Blue 1 ID | F1: Blue 2 ID | G1: Blue 3ID | H1: Red | I1: Blue | J1: Radj | K1: Badj | L1: Bfoul | M1: Rfoul | O1: Match | P1: 67 | Q1: 1325 | R1: 868 | S1: 4003 | T1: 1756 | U1: 6328 | V1: 4776 | W1: 694 | X1: 3928 | Y1: 1114 | Z1: 4786 | AA1: 2200 | AB1: 1322 | AC1: 6875 | AD1: 2220 | AE1: 3620 | AF1: 894 | AG1: 2377 | AH1: 1923 | AI1: 870 | AJ1: 5407 | AK1: 2075 | AL1: 4237 | AM1: 5724 | AN1: 1559 | AO1: 2202 | AP1: 6329 | AQ1: 4541 | AR1: 1218 | AS1: 1259 | AT1: 5913 | AU1: 2016 | AV1: 303 | AW1: 447 | AX1: 5216 | AY1: 3656 | AZ1: 555 | BA1: 6121 | BB1: 5436 | BC1: 7160 | BD1: 4521 | BE1: 4011 | BF1: 4557 | BG1: 5674 | BH1: 2177 | BI1: 3767 | BJ1: 6237 | BK1: 7329 | BL1: 612 | BM1: 1660 | BN1: 2830 | BO1: 5413 | BP1: 4909 | BQ1: 4392 | BR1: 3381 | BS1: 4096 | BT1: 1262 | BU1: 2549 | BV1: 58 | BW1: 2081 | BX1: 2228 | BY1: 5422 | BZ1: 3618 | CA1: 1493 | CB1: 6860 | CC1: 6968 | CD1: 5531 | CE1: 2620
A2: Quarters 1 Match 1 | B2: 5436 | C2: 1114 | D2: 67 | E2: 1559 | F2: 4786 | G2: 1259 | H2: 270 | I2: 317 | J2: =H2-M2 -> 270 | K2: =I2-L2 -> 317 | L2: 0 | M2: 0 | O2: 1 | P2: =IF(($B2=P$1)+($C2=P$1)+($D2=P$1),1,IF(($E2=P$1)+($F2=P$1)+($G2=P$1),-1,0)) -> 1 | Q2: =IF(($B2=Q$1)+($C2=Q$1)+($D2=Q$1),1,IF(($E2=Q$1)+($F2=Q$1)+($G2=Q$1),-1,0)) -> 0 | R2: 0 | S2: 0 | T2: 0 | U2: 0 | V2: 0 | W2: 0 | X2: 0 | Y2: 1 | Z2: -1 | AA2: 0 | AB2: 0 | AC2: 0 | AD2: 0 | AE2: 0 | AF2: 0 | AG2: 0 | AH2: 0 | AI2: 0 | AJ2: 0 | AK2: 0 | AL2: 0 | AM2: 0 | AN2: -1 | AO2: 0 | AP2: 0 | AQ2: 0 | AR2: 0 | AS2: -1 | AT2: 0 | AU2: 0 | AV2: 0 | AW2: 0 | AX2: 0 | AY2: 0 | AZ2: 0 | BA2: 0 | BB2: 1 | BC2: 0 | BD2: 0 | BE2: 0 | BF2: 0 | BG2: 0 | BH2: 0 | BI2: 0 | BJ2: 0 | BK2: 0 | BL2: 0 | BM2: 0 | BN2: 0 | BO2: 0 | BP2: 0 | BQ2: 0 | BR2: 0 | BS2: 0 | BT2: 0 | BU2: 0 | BV2: 0 | BW2: 0 | BX2: 0 | BY2: 0 | BZ2: 0 | CA2: 0 | CB2: 0 | CC2: =IF(($B2=CC$1)+($C2=CC$1)+($D2=CC$1),1,IF(($E2=CC$1)+($F2=CC$1)+($G2=CC$1),-1,0)) -> 0 | CD2: 0 | CE2: 0
A3: Quarters 1 Match 2 | B3: 4557 | C3: 1114 | D3: 67 | E3: 1559 | F3: 4786 | G3: 1259 | H3: 455 | I3: 303 | J3: =H3-M3 -> 450 | K3: =I3-L3 -> 303 | L3: 0 | M3: 5 | O3: 2 | P3: =IF(($B3=P$1)+($C3=P$1)+($D3=P$1),1,IF(($E3=P$1)+($F3=P$1)+($G3=P$1),-1,0)) -> 1 | Q3: 0 | R3: 0 | S3: 0 | T3: 0 | U3: 0 | V3: 0 | W3: 0 | X3: 0 | Y3: 1 | Z3: -1 | AA3: 0 | AB3: 0 | AC3: 0 | AD3: 0 | AE3: 0 | AF3: 0 | AG3: 0 | AH3: 0 | AI3: 0 | AJ3: 0 | AK3: 0 | AL3: 0 | AM3: 0 | AN3: -1 | AO3: 0 | AP3: 0 | AQ3: 0 | AR3: 0 | AS3: -1 | AT3: 0 | AU3: 0 | AV3: 0 | AW3: 0 | AX3: 0 | AY3: 0 | AZ3: 0 | BA3: 0 | BB3: 0 | BC3: 0 | BD3: 0 | BE3: 0 | BF3: 1 | BG3: 0 | BH3: 0 | BI3: 0 | BJ3: 0 | BK3: 0 | BL3: 0 | BM3: 0 | BN3: 0 | BO3: 0 | BP3: 0 | BQ3: 0 | BR3: 0 | BS3: 0 | BT3: 0 | BU3: 0 | BV3: 0 | BW3: 0 | BX3: 0 | BY3: 0 | BZ3: 0 | CA3: 0 | CB3: 0 | CC3: 0 | CD3: 0 | CE3: 0
A4: Quarters 1 Match 3 | B4: 4557 | C4: 1114 | D4: 67 | E4: 1559 | F4: 4786 | G4: 1259 | H4: 443 | I4: 272 | J4: 418 | K4: 262 | L4: 10 | M4: 25 | O4: 3 | P4: 1 | Q4: 0 | R4: 0 | S4: 0 | T4: 0 | U4: 0 | V4: 0 | W4: 0 | X4: 0 | Y4: 1 | Z4: -1 | AA4: 0 | AB4: 0 | AC4: 0 | AD4: 0 | AE4: 0 | AF4: 0 | AG4: 0 | AH4: 0 | AI4: 0 | AJ4: 0 | AK4: 0 | AL4: 0 | AM4: 0 | AN4: -1 | AO4: 0 | AP4: 0 | AQ4: 0 | AR4: 0 | AS4: -1 | AT4: 0 | AU4: 0 | AV4: 0 | AW4: 0 | AX4: 0 | AY4: 0 | AZ4: 0 | BA4: 0 | BB4: 0 | BC4: 0 | BD4: 0 | BE4: 0 | BF4: 1 | BG4: 0 | BH4: 0 | BI4: 0 | BJ4: 0 | BK4: 0 | BL4: 0 | BM4: 0 | BN4: 0 | BO4: 0 | BP4: 0 | BQ4: 0 | BR4: 0 | BS4: 0 | BT4: 0 | BU4: 0 | BV4: 0 | BW4: 0 | BX4: 0 | BY4: 0 | BZ4: 0 | CA4: 0 | CB4: 0 | CC4: 0 | CD4: 0 | CE4: 0
A5: Quarters 2 Match 1 | B5: 3620 | C5: 1756 | D5: 4237 | E5: 1923 | F5: 3656 | G5: 6328 | H5: 440 | I5: 306 | J5: 365 | K5: 301 | L5: 5 | M5: 75 | O5: 4 | P5: 0 | Q5: 0 | R5: 0 | S5: 0 | T5: 1 | U5: -1 | V5: 0 | W5: 0 | X5: 0 | Y5: 0 | Z5: 0 | AA5: 0 | AB5: 0 | AC5: 0 | AD5: 0 | AE5: 1 | AF5: 0 | AG5: 0 | AH5: -1 | AI5: 0 | AJ5: 0 | AK5: 0 | AL5: 1 | AM5: 0 | AN5: 0 | AO5: 0 | AP5: 0 | AQ5: 0 | AR5: 0 | AS5: 0 | AT5: 0 | AU5: 0 | AV5: 0 | AW5: 0 | AX5: 0 | AY5: -1 | AZ5: 0 | BA5: 0 | BB5: 0 | BC5: 0 | BD5: 0 | BE5: 0 | BF5: 0 | BG5: 0 | BH5: 0 | BI5: 0 | BJ5: 0 | BK5: 0 | BL5: 0 | BM5: 0 | BN5: 0 | BO5: 0 | BP5: 0 | BQ5: 0 | BR5: 0 | BS5: 0 | BT5: 0 | BU5: 0 | BV5: 0 | BW5: 0 | BX5: 0 | BY5: 0 | BZ5: 0 | CA5: 0 | CB5: =IF(($B5=CB$1)+($C5=CB$1)+($D5=CB$1),1,IF(($E5=CB$1)+($F5=CB$1)+($G5=CB$1),-1,0)) -> 0 | CC5: 0 | CD5: 0 | CE5: 0
A6: Quarters 2 Match 2 | B6: 3620 | C6: 1756 | D6: 4237 | E6: 1923 | F6: 3656 | G6: 303 | H6: 387 | I6: 365 | J6: 377 | K6: 340 | L6: 25 | M6: 10 | O6: 5 | P6: 0 | Q6: 0 | R6: 0 | S6: 0 | T6: 1 | U6: 0 | V6: 0 | W6: 0 | X6: 0 | Y6: 0 | Z6: 0 | AA6: 0 | AB6: 0 | AC6: 0 | AD6: 0 | AE6: 1 | AF6: 0 | AG6: 0 | AH6: -1 | AI6: 0 | AJ6: 0 | AK6: 0 | AL6: 1 | AM6: 0 | AN6: 0 | AO6: 0 | AP6: 0 | AQ6: 0 | AR6: 0 | AS6: 0 | AT6: 0 | AU6: 0 | AV6: -1 | AW6: 0 | AX6: 0 | AY6: -1 | AZ6: 0 | BA6: 0 | BB6: 0 | BC6: 0 | BD6: 0 | BE6: 0 | BF6: 0 | BG6: 0 | BH6: 0 | BI6: 0 | BJ6: 0 | BK6: 0 | BL6: 0 | BM6: 0 | BN6: 0 | BO6: 0 | BP6: 0 | BQ6: 0 | BR6: 0 | BS6: 0 | BT6: 0 | BU6: 0 | BV6: 0 | BW6: 0 | BX6: 0 | BY6: 0 | BZ6: 0 | CA6: 0 | CB6: 0 | CC6: 0 | CD6: 0 | CE6: 0
A7: Quarters 3 Match 1 | B7: 2016 | C7: 694 | D7: 1325 | E7: 4392 | F7: 2075 | G7: 3928 | H7: 452 | I7: 213 | J7: 452 | K7: 178 | L7: 35 | M7: 0 | O7: 6 | P7: 0 | Q7: 1 | R7: 0 | S7: 0 | T7: 0 | U7: 0 | V7: 0 | W7: 1 | X7: -1 | Y7: 0 | Z7: 0 | AA7: 0 | AB7: 0 | AC7: 0 | AD7: 0 | AE7: 0 | AF7: 0 | AG7: 0 | AH7: 0 | AI7: 0 | AJ7: 0 | AK7: -1 | AL7: 0 | AM7: 0 | AN7: 0 | AO7: 0 | AP7: 0 | AQ7: 0 | AR7: 0 | AS7: 0 | AT7: 0 | AU7: 1 | AV7: 0 | AW7: 0 | AX7: 0 | AY7: 0 | AZ7: 0 | BA7: 0 | BB7: 0 | BC7: 0 | BD7: 0 | BE7: 0 | BF7: 0 | BG7: 0 | BH7: 0 | BI7: 0 | BJ7: 0 | BK7: 0 | BL7: 0 | BM7: 0 | BN7: 0 | BO7: 0 | BP7: 0 | BQ7: -1 | BR7: 0 | BS7: 0 | BT7: 0 | BU7: 0 | BV7: 0 | BW7: 0 | BX7: 0 | BY7: 0 | BZ7: 0 | CA7: 0 | CB7: 0 | CC7: 0 | CD7: 0 | CE7: 0
A8: Quarters 3 Match 2 | B8: 1325 | C8: 694 | D8: 870 | E8: 4392 | F8: 2075 | G8: 3928 | H8: 393 | I8: 297 | J8: 388 | K8: 292 | L8: 5 | M8: 5 | O8: 7 | P8: 0 | Q8: 1 | R8: 0 | S8: 0 | T8: 0 | U8: 0 | V8: 0 | W8: 1 | X8: -1 | Y8: 0 | Z8: 0 | AA8: 0 | AB8: 0 | AC8: 0 | AD8: 0 | AE8: 0 | AF8: 0 | AG8: 0 | AH8: 0 | AI8: 1 | AJ8: 0 | AK8: -1 | AL8: 0 | AM8: 0 | AN8: 0 | AO8: 0 | AP8: 0 | AQ8: 0 | AR8: 0 | AS8: 0 | AT8: 0 | AU8: 0 | AV8: 0 | AW8: 0 | AX8: 0 | AY8: 0 | AZ8: 0 | BA8: 0 | BB8: 0 | BC8: 0 | BD8: 0 | BE8: 0 | BF8: 0 | BG8: 0 | BH8: 0 | BI8: 0 | BJ8: 0 | BK8: 0 | BL8: 0 | BM8: 0 | BN8: 0 | BO8: 0 | BP8: 0 | BQ8: -1 | BR8: 0 | BS8: 0 | BT8: 0 | BU8: 0 | BV8: 0 | BW8: 0 | BX8: 0 | BY8: 0 | BZ8: 0 | CA8: 0 | CB8: 0 | CC8: 0 | CD8: 0 | CE8: 0
A9: Quarters 4 Match 1 | B9: 4541 | C9: 868 | D9: 4003 | E9: 4776 | F9: 2200 | G9: 1218 | H9: 311 | I9: 460 | J9: 286 | K9: 455 | L9: 5 | M9: 25 | O9: 8 | P9: 0 | Q9: 0 | R9: 1 | S9: 1 | T9: 0 | U9: 0 | V9: -1 | W9: 0 | X9: 0 | Y9: 0 | Z9: 0 | AA9: -1 | AB9: 0 | AC9: 0 | AD9: 0 | AE9: 0 | AF9: 0 | AG9: 0 | AH9: 0 | AI9: 0 | AJ9: 0 | AK9: 0 | AL9: 0 | AM9: 0 | AN9: 0 | AO9: 0 | AP9: 0 | AQ9: 1 | AR9: -1 | AS9: 0 | AT9: 0 | AU9: 0 | AV9: 0 | AW9: 0 | AX9: 0 | AY9: 0 | AZ9: 0 | BA9: 0 | BB9: 0 | BC9: 0 | BD9: 0 | BE9: 0 | BF9: 0 | BG9: 0 | BH9: 0 | BI9: 0 | BJ9: 0 | BK9: 0 | BL9: 0 | BM9: 0 | BN9: 0 | BO9: 0 | BP9: 0 | BQ9: 0 | BR9: 0 | BS9: 0 | BT9: 0 | BU9: 0 | BV9: 0 | BW9: 0 | BX9: 0 | BY9: 0 | BZ9: 0 | CA9: =IF(($B9=CA$1)+($C9=CA$1)+($D9=CA$1),1,IF(($E9=CA$1)+($F9=CA$1)+($G9=CA$1),-1,0)) -> 0 | CB9: 0 | CC9: 0 | CD9: 0 | CE9: 0
A10: Quarters 4 Match 2 | B10: 4541 | C10: 868 | D10: 4003 | E10: 4776 | F10: 2200 | G10: 1218 | H10: 368 | I10: 352 | J10: 363 | K10: 347 | L10: 5 | M10: 5 | O10: 9 | P10: 0 | Q10: 0 | R10: 1 | S10: 1 | T10: 0 | U10: 0 | V10: -1 | W10: 0 | X10: 0 | Y10: 0 | Z10: 0 | AA10: -1 | AB10: 0 | AC10: 0 | AD10: 0 | AE10: 0 | AF10: =IF(($B10=AF$1)+($C10=AF$1)+($D10=AF$1),1,IF(($E10=AF$1)+($F10=AF$1)+($G10=AF$1),-1,0)) -> 0 | AG10: 0 | AH10: 0 | AI10: 0 | AJ10: 0 | AK10: 0 | AL10: 0 | AM10: 0 | AN10: 0 | AO10: 0 | AP10: 0 | AQ10: 1 | AR10: -1 | AS10: 0 | AT10: 0 | AU10: 0 | AV10: =IF(($B10=AV$1)+($C10=AV$1)+($D10=AV$1),1,IF(($E10=AV$1)+($F10=AV$1)+($G10=AV$1),-1,0)) -> 0 | AW10: 0 | AX10: 0 | AY10: 0 | AZ10: 0 | BA10: 0 | BB10: 0 | BC10: 0 | BD10: 0 | BE10: 0 | BF10: 0 | BG10: 0 | BH10: 0 | BI10: 0 | BJ10: 0 | BK10: 0 | BL10: =IF(($B10=BL$1)+($C10=BL$1)+($D10=BL$1),1,IF(($E10=BL$1)+($F10=BL$1)+($G10=BL$1),-1,0)) -> 0 | BM10: 0 | BN10: 0 | BO10: 0 | BP10: 0 | BQ10: 0 | BR10: 0 | BS10: 0 | BT10: 0 | BU10: 0 | BV10: 0 | BW10: 0 | BX10: 0 | BY10: 0 | BZ10: 0 | CA10: 0 | CB10: 0 | CC10: 0 | CD10: 0 | CE10: 0
A11: Quarters 4 Match 3 | B11: 4541 | C11: 868 | D11: 4003 | E11: 4776 | F11: 2200 | G11: 1218 | H11: 397 | I11: 255 | J11: 397 | K11: 250 | L11: 5 | M11: 0 | O11: 10 | P11: 0 | Q11: 0 | R11: 1 | S11: 1 | T11: 0 | U11: 0 | V11: -1 | W11: 0 | X11: 0 | Y11: 0 | Z11: 0 | AA11: -1 | AB11: 0 | AC11: 0 | AD11: 0 | AE11: 0 | AF11: 0 | AG11: 0 | AH11: 0 | AI11: 0 | AJ11: 0 | AK11: 0 | AL11: 0 | AM11: 0 | AN11: 0 | AO11: 0 | AP11: 0 | AQ11: 1 | AR11: -1 | AS11: 0 | AT11: 0 | AU11: 0 | AV11: 0 | AW11: 0 | AX11: 0 | AY11: 0 | AZ11: 0 | BA11: 0 | BB11: 0 | BC11: 0 | BD11: 0 | BE11: 0 | BF11: 0 | BG11: 0 | BH11: 0 | BI11: 0 | BJ11: 0 | BK11: 0 | BL11: 0 | BM11: 0 | BN11: 0 | BO11: 0 | BP11: 0 | BQ11: 0 | BR11: 0 | BS11: 0 | BT11: 0 | BU11: 0 | BV11: 0 | BW11: 0 | BX11: 0 | BY11: 0 | BZ11: 0 | CA11: 0 | CB11: 0 | CC11: 0 | CD11: 0 | CE11: 0
A12: Semis 1 Match 1 | B12: 4557 | C12: 1114 | D12: 67 | E12: 3620 | F12: 1756 | G12: 4237 | H12: 313 | I12: 527 | J12: 308 | K12: 442 | L12: 85 | M12: 5 | O12: 11 | P12: 1 | Q12: 0 | R12: 0 | S12: 0 | T12: -1 | U12: 0 | V12: 0 | W12: 0 | X12: 0 | Y12: 1 | Z12: 0 | AA12: 0 | AB12: 0 | AC12: 0 | AD12: 0 | AE12: -1 | AF12: 0 | AG12: 0 | AH12: 0 | AI12: 0 | AJ12: 0 | AK12: 0 | AL12: -1 | AM12: 0 | AN12: 0 | AO12: 0 | AP12: 0 | AQ12: 0 | AR12: 0 | AS12: 0 | AT12: 0 | AU12: 0 | AV12: 0 | AW12: 0 | AX12: 0 | AY12: 0 | AZ12: 0 | BA12: 0 | BB12: 0 | BC12: 0 | BD12: 0 | BE12: 0 | BF12: 1 | BG12: 0 | BH12: 0 | BI12: 0 | BJ12: 0 | BK12: 0 | BL12: 0 | BM12: 0 | BN12: 0 | BO12: 0 | BP12: 0 | BQ12: 0 | BR12: 0 | BS12: 0 | BT12: 0 | BU12: 0 | BV12: 0 | BW12: 0 | BX12: 0 | BY12: 0 | BZ12: 0 | CA12: 0 | CB12: 0 | CC12: 0 | CD12: 0 | CE12: 0
A13: Semis 1 Match 2 | B13: 4557 | C13: 1114 | D13: 67 | E13: 3620 | F13: 1756 | G13: 4237 | H13: 348 | I13: 405 | J13: 348 | K13: 390 | L13: 15 | M13: 0 | O13: 12 | P13: 1 | Q13: 0 | R13: 0 | S13: 0 | T13: -1 | U13: 0 | V13: 0 | W13: 0 | X13: 0 | Y13: 1 | Z13: 0 | AA13: 0 | AB13: 0 | AC13: 0 | AD13: 0 | AE13: -1 | AF13: 0 | AG13: 0 | AH13: 0 | AI13: 0 | AJ13: 0 | AK13: 0 | AL13: -1 | AM13: 0 | AN13: 0 | AO13: 0 | AP13: 0 | AQ13: 0 | AR13: 0 | AS13: 0 | AT13: 0 | AU13: 0 | AV13: 0 | AW13: 0 | AX13: 0 | AY13: 0 | AZ13: 0 | BA13: 0 | BB13: 0 | BC13: 0 | BD13: 0 | BE13: 0 | BF13: 1 | BG13: 0 | BH13: 0 | BI13: 0 | BJ13: 0 | BK13: 0 | BL13: 0 | BM13: 0 | BN13: 0 | BO13: 0 | BP13: 0 | BQ13: 0 | BR13: 0 | BS13: 0 | BT13: 0 | BU13: 0 | BV13: 0 | BW13: 0 | BX13: 0 | BY13: 0 | BZ13: 0 | CA13: 0 | CB13: 0 | CC13: 0 | CD13: 0 | CE13: 0
A14: Semis 2 Match 1 | B14: 1325 | C14: 694 | D14: 2016 | E14: 4541 | F14: 868 | G14: 4003 | H14: 276 | I14: 438 | J14: 261 | K14: 413 | L14: 25 | M14: 15 | O14: 13 | P14: 0 | Q14: 1 | R14: -1 | S14: -1 | T14: 0 | U14: 0 | V14: 0 | W14: 1 | X14: 0 | Y14: 0 | Z14: 0 | AA14: 0 | AB14: 0 | AC14: 0 | AD14: 0 | AE14: 0 | AF14: 0 | AG14: 0 | AH14: 0 | AI14: 0 | AJ14: 0 | AK14: 0 | AL14: 0 | AM14: 0 | AN14: 0 | AO14: 0 | AP14: 0 | AQ14: -1 | AR14: 0 | AS14: 0 | AT14: 0 | AU14: 1 | AV14: 0 | AW14: 0 | AX14: 0 | AY14: 0 | AZ14: 0 | BA14: 0 | BB14: 0 | BC14: 0 | BD14: 0 | BE14: 0 | BF14: 0 | BG14: 0 | BH14: 0 | BI14: 0 | BJ14: 0 | BK14: 0 | BL14: 0 | BM14: 0 | BN14: 0 | BO14: 0 | BP14: 0 | BQ14: 0 | BR14: 0 | BS14: 0 | BT14: 0 | BU14: 0 | BV14: 0 | BW14: 0 | BX14: 0 | BY14: 0 | BZ14: 0 | CA14: 0 | CB14: 0 | CC14: 0 | CD14: 0 | CE14: 0
A15: Semis 2 Match 2 | B15: 1325 | C15: 694 | D15: 2016 | E15: 4541 | F15: 868 | G15: 4003 | H15: 340 | I15: 398 | J15: 340 | K15: 388 | L15: 10 | M15: 0 | O15: 14 | P15: 0 | Q15: 1 | R15: -1 | S15: -1 | T15: 0 | U15: 0 | V15: 0 | W15: 1 | X15: 0 | Y15: 0 | Z15: 0 | AA15: 0 | AB15: 0 | AC15: 0 | AD15: 0 | AE15: 0 | AF15: 0 | AG15: 0 | AH15: 0 | AI15: 0 | AJ15: 0 | AK15: 0 | AL15: 0 | AM15: 0 | AN15: 0 | AO15: 0 | AP15: 0 | AQ15: -1 | AR15: 0 | AS15: 0 | AT15: 0 | AU15: 1 | AV15: 0 | AW15: 0 | AX15: 0 | AY15: 0 | AZ15: 0 | BA15: 0 | BB15: 0 | BC15: 0 | BD15: 0 | BE15: 0 | BF15: 0 | BG15: 0 | BH15: 0 | BI15: 0 | BJ15: 0 | BK15: 0 | BL15: 0 | BM15: 0 | BN15: 0 | BO15: 0 | BP15: 0 | BQ15: 0 | BR15: 0 | BS15: 0 | BT15: 0 | BU15: 0 | BV15: 0 | BW15: 0 | BX15: 0 | BY15: 0 | BZ15: 0 | CA15: 0 | CB15: 0 | CC15: 0 | CD15: 0 | CE15: 0
A16: Finals 1 | B16: 3620 | C16: 1756 | D16: 4237 | E16: 4541 | F16: 868 | G16: 4003 | H16: 356 | I16: 361 | J16: 351 | K16: 361 | L16: 0 | M16: 5 | O16: 15 | P16: 0 | Q16: 0 | R16: -1 | S16: -1 | T16: 1 | U16: 0 | V16: 0 | W16: 0 | X16: 0 | Y16: 0 | Z16: 0 | AA16: 0 | AB16: 0 | AC16: 0 | AD16: 0 | AE16: 1 | AF16: 0 | AG16: 0 | AH16: 0 | AI16: 0 | AJ16: 0 | AK16: 0 | AL16: 1 | AM16: 0 | AN16: 0 | AO16: 0 | AP16: 0 | AQ16: -1 | AR16: 0 | AS16: 0 | AT16: 0 | AU16: 0 | AV16: 0 | AW16: 0 | AX16: 0 | AY16: 0 | AZ16: 0 | BA16: 0 | BB16: 0 | BC16: 0 | BD16: 0 | BE16: 0 | BF16: 0 | BG16: 0 | BH16: 0 | BI16: 0 | BJ16: 0 | BK16: 0 | BL16: 0 | BM16: 0 | BN16: 0 | BO16: 0 | BP16: 0 | BQ16: 0 | BR16: 0 | BS16: 0 | BT16: 0 | BU16: 0 | BV16: 0 | BW16: 0 | BX16: 0 | BY16: 0 | BZ16: 0 | CA16: 0 | CB16: 0 | CC16: 0 | CD16: 0 | CE16: 0
A17: Finals 2 | B17: 3620 | C17: 1756 | D17: 4237 | E17: 4541 | F17: 868 | G17: 4003 | H17: 356 | I17: 397 | J17: 351 | K17: 367 | L17: 30 | M17: 5 | O17: 16 | P17: 0 | Q17: 0 | R17: -1 | S17: -1 | T17: 1 | U17: 0 | V17: 0 | W17: 0 | X17: 0 | Y17: 0 | Z17: 0 | AA17: 0 | AB17: 0 | AC17: 0 | AD17: 0 | AE17: 1 | AF17: 0 | AG17: 0 | AH17: 0 | AI17: 0 | AJ17: 0 | AK17: 0 | AL17: 1 | AM17: 0 | AN17: 0 | AO17: 0 | AP17: 0 | AQ17: -1 | AR17: 0 | AS17: 0 | AT17: 0 | AU17: 0 | AV17: 0 | AW17: 0 | AX17: 0 | AY17: 0 | AZ17: 0 | BA17: 0 | BB17: 0 | BC17: 0 | BD17: 0 | BE17: 0 | BF17: 0 | BG17: 0 | BH17: 0 | BI17: 0 | BJ17: 0 | BK17: 0 | BL17: 0 | BM17: 0 | BN17: 0 | BO17: 0 | BP17: 0 | BQ17: 0 | BR17: 0 | BS17: 0 | BT17: 0 | BU17: 0 | BV17: 0 | BW17: 0 | BX17: 0 | BY17: 0 | BZ17: 0 | CA17: 0 | CB17: 0 | CC17: 0 | CD17: 0 | CE17: 0

Sheet Carson
A1: Match | B1: Red 1 ID | C1: Red 2 ID | D1: Red 3 ID | E1: Blue 1 ID | F1: Blue 2 ID | G1: Blue 3ID | H1: Red | I1: Blue | J1: Radj | K1: Badj | L1: Bfoul | M1: Rfoul | O1: Match | P1: 225 | Q1: 217 | R1: 5050 | S1: 3357 | T1: 2502 | U1: 71 | V1: 1731 | W1: 862 | X1: 384 | Y1: 1918 | Z1: 1640 | AA1: 1736 | AB1: 4253 | AC1: 133 | AD1: 5505 | AE1: 5846 | AF1: 1507 | AG1: 4361 | AH1: 25 | AI1: 3015 | AJ1: 3276 | AK1: 4967 | AL1: 88 | AM1: 2137 | AN1: 1816 | AO1: 7225 | AP1: 1100 | AQ1: 3940 | AR1: 4004 | AS1: 4476 | AT1: 2846 | AU1: 4130 | AV1: 422 | AW1: 1885 | AX1: 3990 | AY1: 5546 | AZ1: 6548 | BA1: 2771 | BB1: 103 | BC1: 6334 | BD1: 467 | BE1: 3936 | BF1: 5404 | BG1: 190 | BH1: 5254 | BI1: 5123 | BJ1: 2537 | BK1: 4230 | BL1: 3624 | BM1: 2225 | BN1: 2987 | BO1: 191 | BP1: 6880 | BQ1: 6909 | BR1: 2832 | BS1: 5484 | BT1: 7028 | BU1: 4145 | BV1: 2586 | BW1: 3604 | BX1: 3044 | BY1: 2604 | BZ1: 6806 | CA1: 272 | CB1: 2234 | CC1: 2338 | CD1: 5016 | CE1: 3359
A2: Quarters 1 Match 1 | B2: 25 | C2: 225 | D2: 3015 | E2: 4004 | F2: 384 | G2: 4476 | H2: 453 | I2: 253 | J2: =H2-M2 -> 443 | K2: =I2-L2 -> 223 | L2: 30 | M2: 10 | O2: 1 | P2: =IF(($B2=P$1)+($C2=P$1)+($D2=P$1),1,IF(($E2=P$1)+($F2=P$1)+($G2=P$1),-1,0)) -> 1 | Q2: =IF(($B2=Q$1)+($C2=Q$1)+($D2=Q$1),1,IF(($E2=Q$1)+($F2=Q$1)+($G2=Q$1),-1,0)) -> 0 | R2: 0 | S2: 0 | T2: 0 | U2: 0 | V2: 0 | W2: 0 | X2: -1 | Y2: 0 | Z2: 0 | AA2: 0 | AB2: 0 | AC2: 0 | AD2: 0 | AE2: 0 | AF2: 0 | AG2: 0 | AH2: 1 | AI2: 1 | AJ2: 0 | AK2: 0 | AL2: 0 | AM2: 0 | AN2: 0 | AO2: 0 | AP2: 0 | AQ2: 0 | AR2: -1 | AS2: -1 | AT2: 0 | AU2: 0 | AV2: 0 | AW2: 0 | AX2: 0 | AY2: 0 | AZ2: 0 | BA2: 0 | BB2: 0 | BC2: 0 | BD2: 0 | BE2: 0 | BF2: 0 | BG2: 0 | BH2: 0 | BI2: 0 | BJ2: 0 | BK2: 0 | BL2: 0 | BM2: 0 | BN2: 0 | BO2: 0 | BP2: 0 | BQ2: 0 | BR2: 0 | BS2: 0 | BT2: 0 | BU2: 0 | BV2: 0 | BW2: 0 | BX2: 0 | BY2: 0 | BZ2: 0 | CA2: 0 | CB2: 0 | CC2: =IF(($B2=CC$1)+($C2=CC$1)+($D2=CC$1),1,IF(($E2=CC$1)+($F2=CC$1)+($G2=CC$1),-1,0)) -> 0 | CD2: 0 | CE2: 0
A3: Quarters 1 Match 2 | B3: 25 | C3: 225 | D3: 3015 | E3: 4004 | F3: 4476 | G3: 384 | H3: 436 | I3: 274 | J3: =H3-M3 -> 406 | K3: =I3-L3 -> 104 | L3: 170 | M3: 30 | O3: 2 | P3: =IF(($B3=P$1)+($C3=P$1)+($D3=P$1),1,IF(($E3=P$1)+($F3=P$1)+($G3=P$1),-1,0)) -> 1 | Q3: 0 | R3: 0 | S3: 0 | T3: 0 | U3: 0 | V3: 0 | W3: 0 | X3: -1 | Y3: 0 | Z3: 0 | AA3: 0 | AB3: 0 | AC3: 0 | AD3: 0 | AE3: 0 | AF3: 0 | AG3: 0 | AH3: 1 | AI3: 1 | AJ3: 0 | AK3: 0 | AL3: 0 | AM3: 0 | AN3: 0 | AO3: 0 | AP3: 0 | AQ3: 0 | AR3: -1 | AS3: -1 | AT3: 0 | AU3: 0 | AV3: 0 | AW3: 0 | AX3: 0 | AY3: 0 | AZ3: 0 | BA3: 0 | BB3: 0 | BC3: 0 | BD3: 0 | BE3: 0 | BF3: 0 | BG3: 0 | BH3: 0 | BI3: 0 | BJ3: 0 | BK3: 0 | BL3: 0 | BM3: 0 | BN3: 0 | BO3: 0 | BP3: 0 | BQ3: 0 | BR3: 0 | BS3: 0 | BT3: 0 | BU3: 0 | BV3: 0 | BW3: 0 | BX3: 0 | BY3: 0 | BZ3: 0 | CA3: 0 | CB3: 0 | CC3: 0 | CD3: 0 | CE3: 0
A4: Quarters 2 Match 1 | B4: 3990 | C4: 2502 | D4: 4253 | E4: 71 | F4: 1640 | G4: 5254 | H4: 341 | I4: 512 | J4: 296 | K4: 512 | L4: 0 | M4: 45 | O4: 3 | P4: 0 | Q4: 0 | R4: 0 | S4: 0 | T4: 1 | U4: -1 | V4: 0 | W4: 0 | X4: 0 | Y4: 0 | Z4: -1 | AA4: 0 | AB4: 1 | AC4: 0 | AD4: 0 | AE4: 0 | AF4: 0 | AG4: 0 | AH4: 0 | AI4: 0 | AJ4: 0 | AK4: 0 | AL4: 0 | AM4: 0 | AN4: 0 | AO4: 0 | AP4: 0 | AQ4: 0 | AR4: 0 | AS4: 0 | AT4: 0 | AU4: 0 | AV4: 0 | AW4: 0 | AX4: 1 | AY4: 0 | AZ4: 0 | BA4: 0 | BB4: 0 | BC4: 0 | BD4: 0 | BE4: 0 | BF4: 0 | BG4: 0 | BH4: -1 | BI4: 0 | BJ4: 0 | BK4: 0 | BL4: 0 | BM4: 0 | BN4: 0 | BO4: 0 | BP4: 0 | BQ4: 0 | BR4: 0 | BS4: 0 | BT4: 0 | BU4: 0 | BV4: 0 | BW4: 0 | BX4: 0 | BY4: 0 | BZ4: 0 | CA4: 0 | CB4: 0 | CC4: 0 | CD4: 0 | CE4: 0
A5: Quarters 2 Match 2 | B5: 1736 | C5: 3990 | D5: 4253 | E5: 71 | F5: 1640 | G5: 5254 | H5: 363 | I5: 307 | J5: 363 | K5: 302 | L5: 5 | M5: 0 | O5: 4 | P5: 0 | Q5: 0 | R5: 0 | S5: 0 | T5: 0 | U5: -1 | V5: 0 | W5: 0 | X5: 0 | Y5: 0 | Z5: -1 | AA5: 1 | AB5: 1 | AC5: 0 | AD5: 0 | AE5: 0 | AF5: 0 | AG5: 0 | AH5: 0 | AI5: 0 | AJ5: 0 | AK5: 0 | AL5: 0 | AM5: 0 | AN5: 0 | AO5: 0 | AP5: 0 | AQ5: 0 | AR5: 0 | AS5: 0 | AT5: 0 | AU5: 0 | AV5: 0 | AW5: 0 | AX5: 1 | AY5: 0 | AZ5: 0 | BA5: 0 | BB5: 0 | BC5: 0 | BD5: 0 | BE5: 0 | BF5: 0 | BG5: 0 | BH5: -1 | BI5: 0 | BJ5: 0 | BK5: 0 | BL5: 0 | BM5: 0 | BN5: 0 | BO5: 0 | BP5: 0 | BQ5: 0 | BR5: 0 | BS5: 0 | BT5: 0 | BU5: 0 | BV5: 0 | BW5: 0 | BX5: 0 | BY5: 0 | BZ5: 0 | CA5: 0 | CB5: =IF(($B5=CB$1)+($C5=CB$1)+($D5=CB$1),1,IF(($E5=CB$1)+($F5=CB$1)+($G5=CB$1),-1,0)) -> 0 | CC5: 0 | CD5: 0 | CE5: 0
A6: Quarters 2 Match 3 | B6: 1736 | C6: 3990 | D6: 4253 | E6: 71 | F6: 1640 | G6: 5254 | H6: 371 | I6: 373 | J6: 341 | K6: 373 | L6: 0 | M6: 30 | O6: 5 | P6: 0 | Q6: 0 | R6: 0 | S6: 0 | T6: 0 | U6: -1 | V6: 0 | W6: 0 | X6: 0 | Y6: 0 | Z6: -1 | AA6: 1 | AB6: 1 | AC6: 0 | AD6: 0 | AE6: 0 | AF6: 0 | AG6: 0 | AH6: 0 | AI6: 0 | AJ6: 0 | AK6: 0 | AL6: 0 | AM6: 0 | AN6: 0 | AO6: 0 | AP6: 0 | AQ6: 0 | AR6: 0 | AS6: 0 | AT6: 0 | AU6: 0 | AV6: 0 | AW6: 0 | AX6: 1 | AY6: 0 | AZ6: 0 | BA6: 0 | BB6: 0 | BC6: 0 | BD6: 0 | BE6: 0 | BF6: 0 | BG6: 0 | BH6: -1 | BI6: 0 | BJ6: 0 | BK6: 0 | BL6: 0 | BM6: 0 | BN6: 0 | BO6: 0 | BP6: 0 | BQ6: 0 | BR6: 0 | BS6: 0 | BT6: 0 | BU6: 0 | BV6: 0 | BW6: 0 | BX6: 0 | BY6: 0 | BZ6: 0 | CA6: 0 | CB6: 0 | CC6: 0 | CD6: 0 | CE6: 0
A7: Quarters 3 Match 1 | B7: 217 | C7: 4967 | D7: 3357 | E7: 1918 | F7: 2338 | G7: 862 | H7: 376 | I7: 394 | J7: 361 | K7: 394 | L7: 0 | M7: 15 | O7: 6 | P7: 0 | Q7: 1 | R7: 0 | S7: 1 | T7: 0 | U7: 0 | V7: 0 | W7: -1 | X7: 0 | Y7: -1 | Z7: 0 | AA7: 0 | AB7: 0 | AC7: 0 | AD7: 0 | AE7: 0 | AF7: 0 | AG7: 0 | AH7: 0 | AI7: 0 | AJ7: 0 | AK7: 1 | AL7: 0 | AM7: 0 | AN7: 0 | AO7: 0 | AP7: 0 | AQ7: 0 | AR7: 0 | AS7: 0 | AT7: 0 | AU7: 0 | AV7: 0 | AW7: 0 | AX7: 0 | AY7: 0 | AZ7: 0 | BA7: 0 | BB7: 0 | BC7: 0 | BD7: 0 | BE7: 0 | BF7: 0 | BG7: 0 | BH7: 0 | BI7: 0 | BJ7: 0 | BK7: 0 | BL7: 0 | BM7: 0 | BN7: 0 | BO7: 0 | BP7: 0 | BQ7: 0 | BR7: 0 | BS7: 0 | BT7: 0 | BU7: 0 | BV7: 0 | BW7: 0 | BX7: 0 | BY7: 0 | BZ7: 0 | CA7: 0 | CB7: 0 | CC7: -1 | CD7: 0 | CE7: 0
A8: Quarters 3 Match 2 | B8: 217 | C8: 4967 | D8: 3357 | E8: 1918 | F8: 2338 | G8: 862 | H8: 399 | I8: 380 | J8: 399 | K8: 350 | L8: 30 | M8: 0 | O8: 7 | P8: 0 | Q8: 1 | R8: 0 | S8: 1 | T8: 0 | U8: 0 | V8: 0 | W8: -1 | X8: 0 | Y8: -1 | Z8: 0 | AA8: 0 | AB8: 0 | AC8: 0 | AD8: 0 | AE8: 0 | AF8: 0 | AG8: 0 | AH8: 0 | AI8: 0 | AJ8: 0 | AK8: 1 | AL8: 0 | AM8: 0 | AN8: 0 | AO8: 0 | AP8: 0 | AQ8: 0 | AR8: 0 | AS8: 0 | AT8: 0 | AU8: 0 | AV8: 0 | AW8: 0 | AX8: 0 | AY8: 0 | AZ8: 0 | BA8: 0 | BB8: 0 | BC8: 0 | BD8: 0 | BE8: 0 | BF8: 0 | BG8: 0 | BH8: 0 | BI8: 0 | BJ8: 0 | BK8: 0 | BL8: 0 | BM8: 0 | BN8: 0 | BO8: 0 | BP8: 0 | BQ8: 0 | BR8: 0 | BS8: 0 | BT8: 0 | BU8: 0 | BV8: 0 | BW8: 0 | BX8: 0 | BY8: 0 | BZ8: 0 | CA8: 0 | CB8: 0 | CC8: -1 | CD8: 0 | CE8: 0
A9: Quarters 3 Match 3 | B9: 217 | C9: 4967 | D9: 3357 | E9: 1918 | F9: 2338 | G9: 862 | H9: 478 | I9: 313 | J9: 468 | K9: 308 | L9: 5 | M9: 10 | O9: 8 | P9: 0 | Q9: 1 | R9: 0 | S9: 1 | T9: 0 | U9: 0 | V9: 0 | W9: -1 | X9: 0 | Y9: -1 | Z9: 0 | AA9: 0 | AB9: 0 | AC9: 0 | AD9: 0 | AE9: 0 | AF9: 0 | AG9: 0 | AH9: 0 | AI9: 0 | AJ9: 0 | AK9: 1 | AL9: 0 | AM9: 0 | AN9: 0 | AO9: 0 | AP9: 0 | AQ9: 0 | AR9: 0 | AS9: 0 | AT9: 0 | AU9: 0 | AV9: 0 | AW9: 0 | AX9: 0 | AY9: 0 | AZ9: 0 | BA9: 0 | BB9: 0 | BC9: 0 | BD9: 0 | BE9: 0 | BF9: 0 | BG9: 0 | BH9: 0 | BI9: 0 | BJ9: 0 | BK9: 0 | BL9: 0 | BM9: 0 | BN9: 0 | BO9: 0 | BP9: 0 | BQ9: 0 | BR9: 0 | BS9: 0 | BT9: 0 | BU9: 0 | BV9: 0 | BW9: 0 | BX9: 0 | BY9: 0 | BZ9: 0 | CA9: =IF(($B9=CA$1)+($C9=CA$1)+($D9=CA$1),1,IF(($E9=CA$1)+($F9=CA$1)+($G9=CA$1),-1,0)) -> 0 | CB9: 0 | CC9: -1 | CD9: 0 | CE9: 0
A10: Quarters 4 Match 1 | B10: 3940 | C10: 5050 | D10: 133 | E10: 1885 | F10: 1731 | G10: 2771 | H10: 432 | I10: 341 | J10: 392 | K10: 331 | L10: 10 | M10: 40 | O10: 9 | P10: 0 | Q10: 0 | R10: 1 | S10: 0 | T10: 0 | U10: 0 | V10: -1 | W10: 0 | X10: 0 | Y10: 0 | Z10: 0 | AA10: 0 | AB10: 0 | AC10: 1 | AD10: 0 | AE10: 0 | AF10: =IF(($B10=AF$1)+($C10=AF$1)+($D10=AF$1),1,IF(($E10=AF$1)+($F10=AF$1)+($G10=AF$1),-1,0)) -> 0 | AG10: 0 | AH10: 0 | AI10: 0 | AJ10: 0 | AK10: 0 | AL10: 0 | AM10: 0 | AN10: 0 | AO10: 0 | AP10: 0 | AQ10: 1 | AR10: 0 | AS10: 0 | AT10: 0 | AU10: 0 | AV10: =IF(($B10=AV$1)+($C10=AV$1)+($D10=AV$1),1,IF(($E10=AV$1)+($F10=AV$1)+($G10=AV$1),-1,0)) -> 0 | AW10: -1 | AX10: 0 | AY10: 0 | AZ10: 0 | BA10: -1 | BB10: 0 | BC10: 0 | BD10: 0 | BE10: 0 | BF10: 0 | BG10: 0 | BH10: 0 | BI10: 0 | BJ10: 0 | BK10: 0 | BL10: =IF(($B10=BL$1)+($C10=BL$1)+($D10=BL$1),1,IF(($E10=BL$1)+($F10=BL$1)+($G10=BL$1),-1,0)) -> 0 | BM10: 0 | BN10: 0 | BO10: 0 | BP10: 0 | BQ10: 0 | BR10: 0 | BS10: 0 | BT10: 0 | BU10: 0 | BV10: 0 | BW10: 0 | BX10: 0 | BY10: 0 | BZ10: 0 | CA10: 0 | CB10: 0 | CC10: 0 | CD10: 0 | CE10: 0
A11: Quarters 4 Match 2 | B11: 3940 | C11: 5050 | D11: 133 | E11: 1885 | F11: 1731 | G11: 2771 | H11: 407 | I11: 297 | J11: 352 | K11: 297 | L11: 0 | M11: 55 | O11: 10 | P11: 0 | Q11: 0 | R11: 1 | S11: 0 | T11: 0 | U11: 0 | V11: -1 | W11: 0 | X11: 0 | Y11: 0 | Z11: 0 | AA11: 0 | AB11: 0 | AC11: 1 | AD11: 0 | AE11: 0 | AF11: 0 | AG11: 0 | AH11: 0 | AI11: 0 | AJ11: 0 | AK11: 0 | AL11: 0 | AM11: 0 | AN11: 0 | AO11: 0 | AP11: 0 | AQ11: 1 | AR11: 0 | AS11: 0 | AT11: 0 | AU11: 0 | AV11: 0 | AW11: -1 | AX11: 0 | AY11: 0 | AZ11: 0 | BA11: -1 | BB11: 0 | BC11: 0 | BD11: 0 | BE11: 0 | BF11: 0 | BG11: 0 | BH11: 0 | BI11: 0 | BJ11: 0 | BK11: 0 | BL11: 0 | BM11: 0 | BN11: 0 | BO11: 0 | BP11: 0 | BQ11: 0 | BR11: 0 | BS11: 0 | BT11: 0 | BU11: 0 | BV11: 0 | BW11: 0 | BX11: 0 | BY11: 0 | BZ11: 0 | CA11: 0 | CB11: 0 | CC11: 0 | CD11: 0 | CE11: 0
A12: Semis 1 Match 1 | B12: 25 | C12: 225 | D12: 3015 | E12: 71 | F12: 1640 | G12: 5254 | H12: 425 | I12: 214 | J12: 425 | K12: 169 | L12: 45 | M12: 0 | O12: 11 | P12: 1 | Q12: 0 | R12: 0 | S12: 0 | T12: 0 | U12: -1 | V12: 0 | W12: 0 | X12: 0 | Y12: 0 | Z12: -1 | AA12: 0 | AB12: 0 | AC12: 0 | AD12: 0 | AE12: 0 | AF12: 0 | AG12: 0 | AH12: 1 | AI12: 1 | AJ12: 0 | AK12: 0 | AL12: 0 | AM12: 0 | AN12: 0 | AO12: 0 | AP12: 0 | AQ12: 0 | AR12: 0 | AS12: 0 | AT12: 0 | AU12: 0 | AV12: 0 | AW12: 0 | AX12: 0 | AY12: 0 | AZ12: 0 | BA12: 0 | BB12: 0 | BC12: 0 | BD12: 0 | BE12: 0 | BF12: 0 | BG12: 0 | BH12: -1 | BI12: 0 | BJ12: 0 | BK12: 0 | BL12: 0 | BM12: 0 | BN12: 0 | BO12: 0 | BP12: 0 | BQ12: 0 | BR12: 0 | BS12: 0 | BT12: 0 | BU12: 0 | BV12: 0 | BW12: 0 | BX12: 0 | BY12: 0 | BZ12: 0 | CA12: 0 | CB12: 0 | CC12: 0 | CD12: 0 | CE12: 0
A13: Semis 1 Match 2 | B13: 25 | C13: 225 | D13: 3015 | E13: 71 | F13: 1640 | G13: 5254 | H13: 0 | I13: 209 | J13: -5 | K13: 199 | L13: 10 | M13: 5 | O13: 12 | P13: 1 | Q13: 0 | R13: 0 | S13: 0 | T13: 0 | U13: -1 | V13: 0 | W13: 0 | X13: 0 | Y13: 0 | Z13: -1 | AA13: 0 | AB13: 0 | AC13: 0 | AD13: 0 | AE13: 0 | AF13: 0 | AG13: 0 | AH13: 1 | AI13: 1 | AJ13: 0 | AK13: 0 | AL13: 0 | AM13: 0 | AN13: 0 | AO13: 0 | AP13: 0 | AQ13: 0 | AR13: 0 | AS13: 0 | AT13: 0 | AU13: 0 | AV13: 0 | AW13: 0 | AX13: 0 | AY13: 0 | AZ13: 0 | BA13: 0 | BB13: 0 | BC13: 0 | BD13: 0 | BE13: 0 | BF13: 0 | BG13: 0 | BH13: -1 | BI13: 0 | BJ13: 0 | BK13: 0 | BL13: 0 | BM13: 0 | BN13: 0 | BO13: 0 | BP13: 0 | BQ13: 0 | BR13: 0 | BS13: 0 | BT13: 0 | BU13: 0 | BV13: 0 | BW13: 0 | BX13: 0 | BY13: 0 | BZ13: 0 | CA13: 0 | CB13: 0 | CC13: 0 | CD13: 0 | CE13: 0
A14: Semis 1 Match 3 | B14: 25 | C14: 225 | D14: 3015 | E14: 1640 | F14: 422 | G14: 5254 | H14: 247 | I14: 264 | J14: 242 | K14: 229 | L14: 35 | M14: 5 | O14: 13 | P14: 1 | Q14: 0 | R14: 0 | S14: 0 | T14: 0 | U14: 0 | V14: 0 | W14: 0 | X14: 0 | Y14: 0 | Z14: -1 | AA14: 0 | AB14: 0 | AC14: 0 | AD14: 0 | AE14: 0 | AF14: 0 | AG14: 0 | AH14: 1 | AI14: 1 | AJ14: 0 | AK14: 0 | AL14: 0 | AM14: 0 | AN14: 0 | AO14: 0 | AP14: 0 | AQ14: 0 | AR14: 0 | AS14: 0 | AT14: 0 | AU14: 0 | AV14: -1 | AW14: 0 | AX14: 0 | AY14: 0 | AZ14: 0 | BA14: 0 | BB14: 0 | BC14: 0 | BD14: 0 | BE14: 0 | BF14: 0 | BG14: 0 | BH14: -1 | BI14: 0 | BJ14: 0 | BK14: 0 | BL14: 0 | BM14: 0 | BN14: 0 | BO14: 0 | BP14: 0 | BQ14: 0 | BR14: 0 | BS14: 0 | BT14: 0 | BU14: 0 | BV14: 0 | BW14: 0 | BX14: 0 | BY14: 0 | BZ14: 0 | CA14: 0 | CB14: 0 | CC14: 0 | CD14: 0 | CE14: 0
A15: Semis 2 Match 1 | B15: 217 | C15: 4967 | D15: 3357 | E15: 3940 | F15: 5050 | G15: 133 | H15: 417 | I15: 265 | J15: 417 | K15: 265 | L15: 0 | M15: 0 | O15: 14 | P15: 0 | Q15: 1 | R15: -1 | S15: 1 | T15: 0 | U15: 0 | V15: 0 | W15: 0 | X15: 0 | Y15: 0 | Z15: 0 | AA15: 0 | AB15: 0 | AC15: -1 | AD15: 0 | AE15: 0 | AF15: 0 | AG15: 0 | AH15: 0 | AI15: 0 | AJ15: 0 | AK15: 1 | AL15: 0 | AM15: 0 | AN15: 0 | AO15: 0 | AP15: 0 | AQ15: -1 | AR15: 0 | AS15: 0 | AT15: 0 | AU15: 0 | AV15: 0 | AW15: 0 | AX15: 0 | AY15: 0 | AZ15: 0 | BA15: 0 | BB15: 0 | BC15: 0 | BD15: 0 | BE15: 0 | BF15: 0 | BG15: 0 | BH15: 0 | BI15: 0 | BJ15: 0 | BK15: 0 | BL15: 0 | BM15: 0 | BN15: 0 | BO15: 0 | BP15: 0 | BQ15: 0 | BR15: 0 | BS15: 0 | BT15: 0 | BU15: 0 | BV15: 0 | BW15: 0 | BX15: 0 | BY15: 0 | BZ15: 0 | CA15: 0 | CB15: 0 | CC15: 0 | CD15: 0 | CE15: 0
A16: Semis 2 Match 2 | B16: 217 | C16: 4967 | D16: 3357 | E16: 3604 | F16: 5050 | G16: 133 | H16: 447 | I16: 233 | J16: 447 | K16: 223 | L16: 10 | M16: 0 | O16: 15 | P16: 0 | Q16: 1 | R16: -1 | S16: 1 | T16: 0 | U16: 0 | V16: 0 | W16: 0 | X16: 0 | Y16: 0 | Z16: 0 | AA16: 0 | AB16: 0 | AC16: -1 | AD16: 0 | AE16: 0 | AF16: 0 | AG16: 0 | AH16: 0 | AI16: 0 | AJ16: 0 | AK16: 1 | AL16: 0 | AM16: 0 | AN16: 0 | AO16: 0 | AP16: 0 | AQ16: 0 | AR16: 0 | AS16: 0 | AT16: 0 | AU16: 0 | AV16: 0 | AW16: 0 | AX16: 0 | AY16: 0 | AZ16: 0 | BA16: 0 | BB16: 0 | BC16: 0 | BD16: 0 | BE16: 0 | BF16: 0 | BG16: 0 | BH16: 0 | BI16: 0 | BJ16: 0 | BK16: 0 | BL16: 0 | BM16: 0 | BN16: 0 | BO16: 0 | BP16: 0 | BQ16: 0 | BR16: 0 | BS16: 0 | BT16: 0 | BU16: 0 | BV16: 0 | BW16: -1 | BX16: 0 | BY16: 0 | BZ16: 0 | CA16: 0 | CB16: 0 | CC16: 0 | CD16: 0 | CE16: 0
A17: Finals 1 | B17: 1640 | C17: 422 | D17: 5254 | E17: 217 | F17: 4967 | G17: 3357 | H17: 308 | I17: 414 | J17: 278 | K17: 404 | L17: 10 | M17: 30 | O17: 16 | P17: 0 | Q17: -1 | R17: 0 | S17: -1 | T17: 0 | U17: 0 | V17: 0 | W17: 0 | X17: 0 | Y17: 0 | Z17: 1 | AA17: 0 | AB17: 0 | AC17: 0 | AD17: 0 | AE17: 0 | AF17: 0 | AG17: 0 | AH17: 0 | AI17: 0 | AJ17: 0 | AK17: -1 | AL17: 0 | AM17: 0 | AN17: 0 | AO17: 0 | AP17: 0 | AQ17: 0 | AR17: 0 | AS17: 0 | AT17: 0 | AU17: 0 | AV17: 1 | AW17: 0 | AX17: 0 | AY17: 0 | AZ17: 0 | BA17: 0 | BB17: 0 | BC17: 0 | BD17: 0 | BE17: 0 | BF17: 0 | BG17: 0 | BH17: 1 | BI17: 0 | BJ17: 0 | BK17: 0 | BL17: 0 | BM17: 0 | BN17: 0 | BO17: 0 | BP17: 0 | BQ17: 0 | BR17: 0 | BS17: 0 | BT17: 0 | BU17: 0 | BV17: 0 | BW17: 0 | BX17: 0 | BY17: 0 | BZ17: 0 | CA17: 0 | CB17: 0 | CC17: 0 | CD17: 0 | CE17: 0
A18: Finals 2 | B18: 1640 | C18: 422 | D18: 5254 | E18: 217 | F18: 4967 | G18: 3357 | H18: 291 | I18: 469 | J18: 291 | K18: 459 | L18: 10 | M18: 0 | O18: 17 | P18: =IF(($B18=P$1)+($C18=P$1)+($D18=P$1),1,IF(($E18=P$1)+($F18=P$1)+($G18=P$1),-1,0)) -> 0 | Q18: -1 | R18: 0 | S18: -1 | T18: 0 | U18: 0 | V18: 0 | W18: 0 | X18: 0 | Y18: 0 | Z18: 1 | AA18: 0 | AB18: 0 | AC18: 0 | AD18: 0 | AE18: 0 | AF18: 0 | AG18: 0 | AH18: 0 | AI18: 0 | AJ18: 0 | AK18: -1 | AL18: 0 | AM18: 0 | AN18: 0 | AO18: 0 | AP18: 0 | AQ18: 0 | AR18: 0 | AS18: 0 | AT18: 0 | AU18: 0 | AV18: 1 | AW18: 0 | AX18: 0 | AY18: 0 | AZ18: 0 | BA18: 0 | BB18: 0 | BC18: 0 | BD18: 0 | BE18: 0 | BF18: 0 | BG18: 0 | BH18: 1 | BI18: 0 | BJ18: 0 | BK18: 0 | BL18: 0 | BM18: 0 | BN18: 0 | BO18: 0 | BP18: 0 | BQ18: 0 | BR18: 0 | BS18: 0 | BT18: 0 | BU18: 0 | BV18: 0 | BW18: 0 | BX18: 0 | BY18: 0 | BZ18: 0 | CA18: 0 | CB18: 0 | CC18: 0 | CD18: 0 | CE18: 0

Sheet Curie
A1: Match | B1: Red 1 ID | C1: Red 2 ID | D1: Red 3 ID | E1: Blue 1 ID | F1: Blue 2 ID | G1: Blue 3ID | H1: Red | I1: Blue | J1: Radj | K1: Badj | L1: Bfoul | M1: Rfoul | O1: Match | P1: 3707 | Q1: 195 | R1: 3538 | S1: 3452 | T1: 2054 | U1: 230 | V1: 5813 | W1: 20 | X1: 4405 | Y1: 1684 | Z1: 5687 | AA1: 1747 | AB1: 70 | AC1: 558 | AD1: 1718 | AE1: 1741 | AF1: 236 | AG1: 2067 | AH1: 3244 | AI1: 3314 | AJ1: 1071 | AK1: 263 | AL1: 2052 | AM1: 5205 | AN1: 302 | AO1: 126 | AP1: 5553 | AQ1: 2638 | AR1: 5603 | AS1: 4384 | AT1: 5712 | AU1: 5460 | AV1: 910 | AW1: 2826 | AX1: 1023 | AY1: 6933 | AZ1: 5822 | BA1: 4903 | BB1: 1599 | BC1: 2175 | BD1: 1025 | BE1: 5907 | BF1: 3324 | BG1: 7198 | BH1: 316 | BI1: 5804 | BJ1: 503 | BK1: 7103 | BL1: 2601 | BM1: 379 | BN1: 167 | BO1: 3082 | BP1: 4976 | BQ1: 7021 | BR1: 2265 | BS1: 6401 | BT1: 4814 | BU1: 45 | BV1: 4342 | BW1: 4655 | BX1: 6175 | BY1: 4099 | BZ1: 7250 | CA1: 333 | CB1: 4607 | CC1: 6032 | CD1: 1555
A2: Quarters 1 Match 1 | B2: 333 | C2: 3707 | D2: 195 | E2: 1684 | F2: 302 | G2: 3314 | H2: 360 | I2: 319 | J2: =H2-M2 -> 330 | K2: =I2-L2 -> 319 | L2: 0 | M2: 30 | O2: 1 | P2: =IF(($B2=P$1)+($C2=P$1)+($D2=P$1),1,IF(($E2=P$1)+($F2=P$1)+($G2=P$1),-1,0)) -> 1 | Q2: =IF(($B2=Q$1)+($C2=Q$1)+($D2=Q$1),1,IF(($E2=Q$1)+($F2=Q$1)+($G2=Q$1),-1,0)) -> 1 | R2: 0 | S2: 0 | T2: 0 | U2: 0 | V2: 0 | W2: 0 | X2: 0 | Y2: -1 | Z2: 0 | AA2: 0 | AB2: 0 | AC2: 0 | AD2: 0 | AE2: 0 | AF2: 0 | AG2: 0 | AH2: 0 | AI2: -1 | AJ2: 0 | AK2: 0 | AL2: 0 | AM2: 0 | AN2: -1 | AO2: 0 | AP2: 0 | AQ2: 0 | AR2: 0 | AS2: 0 | AT2: 0 | AU2: 0 | AV2: 0 | AW2: 0 | AX2: 0 | AY2: 0 | AZ2: 0 | BA2: 0 | BB2: 0 | BC2: 0 | BD2: 0 | BE2: 0 | BF2: 0 | BG2: 0 | BH2: 0 | BI2: 0 | BJ2: 0 | BK2: 0 | BL2: 0 | BM2: 0 | BN2: 0 | BO2: 0 | BP2: 0 | BQ2: 0 | BR2: 0 | BS2: 0 | BT2: 0 | BU2: 0 | BV2: 0 | BW2: 0 | BX2: 0 | BY2: 0 | BZ2: 0 | CA2: 1 | CB2: 0 | CC2: =IF(($B2=CC$1)+($C2=CC$1)+($D2=CC$1),1,IF(($E2=CC$1)+($F2=CC$1)+($G2=CC$1),-1,0)) -> 0 | CD2: 0
A3: Quarters 1 Match 2 | B3: 333 | C3: 3707 | D3: 195 | E3: 1684 | F3: 302 | G3: 3314 | H3: 469 | I3: 236 | J3: =H3-M3 -> 454 | K3: =I3-L3 -> 231 | L3: 5 | M3: 15 | O3: 2 | P3: =IF(($B3=P$1)+($C3=P$1)+($D3=P$1),1,IF(($E3=P$1)+($F3=P$1)+($G3=P$1),-1,0)) -> 1 | Q3: 1 | R3: 0 | S3: 0 | T3: 0 | U3: 0 | V3: 0 | W3: 0 | X3: 0 | Y3: -1 | Z3: 0 | AA3: 0 | AB3: 0 | AC3: 0 | AD3: 0 | AE3: 0 | AF3: 0 | AG3: 0 | AH3: 0 | AI3: -1 | AJ3: 0 | AK3: 0 | AL3: 0 | AM3: 0 | AN3: -1 | AO3: 0 | AP3: 0 | AQ3: 0 | AR3: 0 | AS3: 0 | AT3: 0 | AU3: 0 | AV3: 0 | AW3: 0 | AX3: 0 | AY3: 0 | AZ3: 0 | BA3: 0 | BB3: 0 | BC3: 0 | BD3: 0 | BE3: 0 | BF3: 0 | BG3: 0 | BH3: 0 | BI3: 0 | BJ3: 0 | BK3: 0 | BL3: 0 | BM3: 0 | BN3: 0 | BO3: 0 | BP3: 0 | BQ3: 0 | BR3: 0 | BS3: 0 | BT3: 0 | BU3: 0 | BV3: 0 | BW3: 0 | BX3: 0 | BY3: 0 | BZ3: 0 | CA3: 1 | CB3: 0 | CC3: 0 | CD3: 0
A4: Quarters 2 Match 1 | B4: 379 | C4: 2054 | D4: 2052 | E4: 503 | F4: 2175 | G4: 5813 | H4: 417 | I4: 252 | J4: 362 | K4: 252 | L4: 0 | M4: 55 | O4: 3 | P4: 0 | Q4: =IF(($B4=Q$1)+($C4=Q$1)+($D4=Q$1),1,IF(($E4=Q$1)+($F4=Q$1)+($G4=Q$1),-1,0)) -> 0 | R4: 0 | S4: 0 | T4: 1 | U4: 0 | V4: -1 | W4: 0 | X4: 0 | Y4: 0 | Z4: 0 | AA4: 0 | AB4: 0 | AC4: 0 | AD4: 0 | AE4: 0 | AF4: 0 | AG4: 0 | AH4: 0 | AI4: 0 | AJ4: 0 | AK4: 0 | AL4: 1 | AM4: 0 | AN4: 0 | AO4: 0 | AP4: 0 | AQ4: 0 | AR4: 0 | AS4: 0 | AT4: 0 | AU4: 0 | AV4: 0 | AW4: 0 | AX4: 0 | AY4: 0 | AZ4: 0 | BA4: 0 | BB4: 0 | BC4: -1 | BD4: 0 | BE4: 0 | BF4: 0 | BG4: 0 | BH4: 0 | BI4: 0 | BJ4: -1 | BK4: 0 | BL4: 0 | BM4: 1 | BN4: 0 | BO4: 0 | BP4: 0 | BQ4: 0 | BR4: 0 | BS4: 0 | BT4: 0 | BU4: 0 | BV4: 0 | BW4: 0 | BX4: 0 | BY4: 0 | BZ4: 0 | CA4: 0 | CB4: 0 | CC4: 0 | CD4: 0
A5: Quarters 2 Match 2 | B5: 379 | C5: 2054 | D5: 2052 | E5: 316 | F5: 503 | G5: 5813 | H5: 364 | I5: 313 | J5: 314 | K5: 263 | L5: 50 | M5: 50 | O5: 4 | P5: 0 | Q5: 0 | R5: 0 | S5: 0 | T5: 1 | U5: 0 | V5: -1 | W5: 0 | X5: 0 | Y5: 0 | Z5: 0 | AA5: 0 | AB5: 0 | AC5: 0 | AD5: 0 | AE5: 0 | AF5: 0 | AG5: 0 | AH5: 0 | AI5: 0 | AJ5: 0 | AK5: 0 | AL5: 1 | AM5: 0 | AN5: 0 | AO5: 0 | AP5: 0 | AQ5: 0 | AR5: 0 | AS5: 0 | AT5: 0 | AU5: 0 | AV5: 0 | AW5: 0 | AX5: 0 | AY5: 0 | AZ5: 0 | BA5: 0 | BB5: 0 | BC5: 0 | BD5: 0 | BE5: 0 | BF5: 0 | BG5: 0 | BH5: -1 | BI5: 0 | BJ5: -1 | BK5: 0 | BL5: 0 | BM5: 1 | BN5: 0 | BO5: 0 | BP5: 0 | BQ5: 0 | BR5: 0 | BS5: 0 | BT5: 0 | BU5: 0 | BV5: 0 | BW5: 0 | BX5: 0 | BY5: 0 | BZ5: 0 | CA5: 0 | CB5: 0 | CC5: 0 | CD5: 0
A6: Quarters 3 Match 1 | B6: 2826 | C6: 3538 | D6: 1747 | E6: 5460 | F6: 4405 | G6: 1718 | H6: 463 | I6: 302 | J6: 438 | K6: 302 | L6: 0 | M6: 25 | O6: 5 | P6: 0 | Q6: 0 | R6: 1 | S6: 0 | T6: 0 | U6: 0 | V6: 0 | W6: 0 | X6: -1 | Y6: 0 | Z6: 0 | AA6: 1 | AB6: 0 | AC6: 0 | AD6: -1 | AE6: 0 | AF6: 0 | AG6: 0 | AH6: 0 | AI6: 0 | AJ6: 0 | AK6: 0 | AL6: 0 | AM6: 0 | AN6: 0 | AO6: 0 | AP6: 0 | AQ6: 0 | AR6: 0 | AS6: 0 | AT6: 0 | AU6: -1 | AV6: 0 | AW6: 1 | AX6: 0 | AY6: 0 | AZ6: 0 | BA6: 0 | BB6: 0 | BC6: 0 | BD6: 0 | BE6: 0 | BF6: 0 | BG6: 0 | BH6: 0 | BI6: 0 | BJ6: 0 | BK6: 0 | BL6: 0 | BM6: 0 | BN6: 0 | BO6: 0 | BP6: 0 | BQ6: 0 | BR6: 0 | BS6: 0 | BT6: 0 | BU6: 0 | BV6: 0 | BW6: 0 | BX6: 0 | BY6: 0 | BZ6: 0 | CA6: 0 | CB6: 0 | CC6: 0 | CD6: 0
A7: Quarters 3 Match 2 | B7: 4607 | C7: 3538 | D7: 1747 | E7: 5460 | F7: 4405 | G7: 1718 | H7: 380 | I7: 325 | J7: 380 | K7: 325 | L7: 0 | M7: 0 | O7: 6 | P7: 0 | Q7: 0 | R7: 1 | S7: 0 | T7: 0 | U7: 0 | V7: 0 | W7: 0 | X7: -1 | Y7: 0 | Z7: 0 | AA7: 1 | AB7: 0 | AC7: 0 | AD7: -1 | AE7: 0 | AF7: 0 | AG7: 0 | AH7: 0 | AI7: 0 | AJ7: 0 | AK7: 0 | AL7: 0 | AM7: 0 | AN7: 0 | AO7: 0 | AP7: 0 | AQ7: 0 | AR7: 0 | AS7: 0 | AT7: 0 | AU7: -1 | AV7: 0 | AW7: 0 | AX7: 0 | AY7: 0 | AZ7: 0 | BA7: 0 | BB7: 0 | BC7: 0 | BD7: 0 | BE7: 0 | BF7: 0 | BG7: 0 | BH7: 0 | BI7: 0 | BJ7: 0 | BK7: 0 | BL7: 0 | BM7: 0 | BN7: 0 | BO7: 0 | BP7: 0 | BQ7: 0 | BR7: 0 | BS7: 0 | BT7: 0 | BU7: 0 | BV7: 0 | BW7: 0 | BX7: 0 | BY7: 0 | BZ7: 0 | CA7: 0 | CB7: =IF(($B7=CB$1)+($C7=CB$1)+($D7=CB$1),1,IF(($E7=CB$1)+($F7=CB$1)+($G7=CB$1),-1,0)) -> 1 | CC7: 0 | CD7: 0
A8: Quarters 4 Match 1 | B8: 230 | C8: 3452 | D8: 5687 | E8: 1023 | F8: 910 | G8: 20 | H8: 341 | I8: 260 | J8: 316 | K8: 260 | L8: 0 | M8: 25 | O8: 7 | P8: 0 | Q8: =IF(($B8=Q$1)+($C8=Q$1)+($D8=Q$1),1,IF(($E8=Q$1)+($F8=Q$1)+($G8=Q$1),-1,0)) -> 0 | R8: 0 | S8: 1 | T8: 0 | U8: 1 | V8: 0 | W8: -1 | X8: 0 | Y8: 0 | Z8: 1 | AA8: 0 | AB8: 0 | AC8: 0 | AD8: 0 | AE8: 0 | AF8: 0 | AG8: 0 | AH8: 0 | AI8: 0 | AJ8: 0 | AK8: 0 | AL8: 0 | AM8: 0 | AN8: 0 | AO8: 0 | AP8: 0 | AQ8: 0 | AR8: 0 | AS8: 0 | AT8: 0 | AU8: 0 | AV8: -1 | AW8: 0 | AX8: -1 | AY8: 0 | AZ8: 0 | BA8: 0 | BB8: 0 | BC8: 0 | BD8: 0 | BE8: 0 | BF8: 0 | BG8: 0 | BH8: 0 | BI8: 0 | BJ8: 0 | BK8: 0 | BL8: 0 | BM8: 0 | BN8: 0 | BO8: 0 | BP8: 0 | BQ8: 0 | BR8: 0 | BS8: 0 | BT8: 0 | BU8: 0 | BV8: 0 | BW8: 0 | BX8: 0 | BY8: 0 | BZ8: 0 | CA8: 0 | CB8: 0 | CC8: 0 | CD8: 0
A9: Quarters 4 Match 2 | B9: 230 | C9: 3452 | D9: 5687 | E9: 1023 | F9: 910 | G9: 20 | H9: 263 | I9: 398 | J9: 238 | K9: 388 | L9: 10 | M9: 25 | O9: 8 | P9: 0 | Q9: 0 | R9: 0 | S9: 1 | T9: 0 | U9: 1 | V9: 0 | W9: -1 | X9: 0 | Y9: 0 | Z9: 1 | AA9: 0 | AB9: 0 | AC9: 0 | AD9: 0 | AE9: 0 | AF9: 0 | AG9: 0 | AH9: 0 | AI9: 0 | AJ9: 0 | AK9: 0 | AL9: 0 | AM9: 0 | AN9: 0 | AO9: 0 | AP9: 0 | AQ9: 0 | AR9: 0 | AS9: 0 | AT9: 0 | AU9: 0 | AV9: -1 | AW9: 0 | AX9: -1 | AY9: 0 | AZ9: 0 | BA9: 0 | BB9: 0 | BC9: 0 | BD9: 0 | BE9: 0 | BF9: 0 | BG9: 0 | BH9: 0 | BI9: 0 | BJ9: 0 | BK9: 0 | BL9: 0 | BM9: 0 | BN9: 0 | BO9: 0 | BP9: 0 | BQ9: 0 | BR9: 0 | BS9: 0 | BT9: 0 | BU9: 0 | BV9: 0 | BW9: 0 | BX9: 0 | BY9: 0 | BZ9: 0 | CA9: 0 | CB9: 0 | CC9: 0 | CD9: 0
A10: Quarters 4 Match 3 | B10: 230 | C10: 4814 | D10: 3452 | E10: 1023 | F10: 910 | G10: 20 | H10: 329 | I10: 300 | J10: 324 | K10: 300 | L10: 0 | M10: 5 | O10: 9 | P10: 0 | Q10: 0 | R10: 0 | S10: 1 | T10: 0 | U10: 1 | V10: 0 | W10: -1 | X10: 0 | Y10: 0 | Z10: 0 | AA10: 0 | AB10: 0 | AC10: 0 | AD10: 0 | AE10: 0 | AF10: 0 | AG10: 0 | AH10: 0 | AI10: 0 | AJ10: 0 | AK10: 0 | AL10: 0 | AM10: 0 | AN10: 0 | AO10: 0 | AP10: 0 | AQ10: 0 | AR10: 0 | AS10: 0 | AT10: 0 | AU10: 0 | AV10: -1 | AW10: 0 | AX10: -1 | AY10: 0 | AZ10: 0 | BA10: 0 | BB10: 0 | BC10: 0 | BD10: 0 | BE10: 0 | BF10: 0 | BG10: 0 | BH10: 0 | BI10: 0 | BJ10: 0 | BK10: 0 | BL10: 0 | BM10: 0 | BN10: 0 | BO10: 0 | BP10: 0 | BQ10: 0 | BR10: 0 | BS10: 0 | BT10: 1 | BU10: 0 | BV10: 0 | BW10: 0 | BX10: 0 | BY10: 0 | BZ10: 0 | CA10: 0 | CB10: 0 | CC10: 0 | CD10: 0
A11: Semis 1 Match 1 | B11: 333 | C11: 3707 | D11: 195 | E11: 379 | F11: 2054 | G11: 2052 | H11: 467 | I11: 202 | J11: 467 | K11: 197 | L11: 5 | M11: 0 | O11: 10 | P11: 1 | Q11: 1 | R11: 0 | S11: 0 | T11: -1 | U11: 0 | V11: 0 | W11: 0 | X11: 0 | Y11: 0 | Z11: 0 | AA11: 0 | AB11: 0 | AC11: 0 | AD11: 0 | AE11: 0 | AF11: 0 | AG11: 0 | AH11: 0 | AI11: 0 | AJ11: 0 | AK11: 0 | AL11: -1 | AM11: 0 | AN11: 0 | AO11: 0 | AP11: 0 | AQ11: 0 | AR11: 0 | AS11: 0 | AT11: 0 | AU11: 0 | AV11: 0 | AW11: 0 | AX11: 0 | AY11: 0 | AZ11: 0 | BA11: 0 | BB11: 0 | BC11: 0 | BD11: 0 | BE11: 0 | BF11: 0 | BG11: 0 | BH11: 0 | BI11: 0 | BJ11: 0 | BK11: 0 | BL11: 0 | BM11: -1 | BN11: 0 | BO11: 0 | BP11: 0 | BQ11: 0 | BR11: 0 | BS11: 0 | BT11: 0 | BU11: 0 | BV11: 0 | BW11: 0 | BX11: 0 | BY11: 0 | BZ11: 0 | CA11: 1 | CB11: =IF(($B11=CB$1)+($C11=CB$1)+($D11=CB$1),1,IF(($E11=CB$1)+($F11=CB$1)+($G11=CB$1),-1,0)) -> 0 | CC11: 0 | CD11: 0
A12: Semis 1 Match 2 | B12: 333 | C12: 3707 | D12: 195 | E12: 379 | F12: 2054 | G12: 2052 | H12: 348 | I12: 293 | J12: 343 | K12: 293 | L12: 0 | M12: 5 | O12: 11 | P12: 1 | Q12: =IF(($B12=Q$1)+($C12=Q$1)+($D12=Q$1),1,IF(($E12=Q$1)+($F12=Q$1)+($G12=Q$1),-1,0)) -> 1 | R12: 0 | S12: 0 | T12: -1 | U12: 0 | V12: 0 | W12: 0 | X12: 0 | Y12: 0 | Z12: 0 | AA12: 0 | AB12: 0 | AC12: 0 | AD12: 0 | AE12: 0 | AF12: 0 | AG12: 0 | AH12: 0 | AI12: 0 | AJ12: 0 | AK12: 0 | AL12: -1 | AM12: 0 | AN12: 0 | AO12: 0 | AP12: 0 | AQ12: 0 | AR12: 0 | AS12: 0 | AT12: 0 | AU12: 0 | AV12: 0 | AW12: 0 | AX12: 0 | AY12: 0 | AZ12: 0 | BA12: 0 | BB12: 0 | BC12: 0 | BD12: 0 | BE12: 0 | BF12: 0 | BG12: 0 | BH12: 0 | BI12: 0 | BJ12: 0 | BK12: 0 | BL12: 0 | BM12: -1 | BN12: 0 | BO12: 0 | BP12: 0 | BQ12: 0 | BR12: 0 | BS12: 0 | BT12: 0 | BU12: 0 | BV12: 0 | BW12: 0 | BX12: 0 | BY12: 0 | BZ12: 0 | CA12: 1 | CB12: 0 | CC12: 0 | CD12: 0
A13: Semis 2 Match 1 | B13: 2826 | C13: 3538 | D13: 1747 | E13: 230 | F13: 4814 | G13: 3452 | H13: 397 | I13: 269 | J13: 397 | K13: 259 | L13: 10 | M13: 0 | O13: 12 | P13: 0 | Q13: 0 | R13: 1 | S13: -1 | T13: 0 | U13: -1 | V13: 0 | W13: 0 | X13: 0 | Y13: 0 | Z13: 0 | AA13: 1 | AB13: 0 | AC13: 0 | AD13: 0 | AE13: 0 | AF13: 0 | AG13: 0 | AH13: 0 | AI13: 0 | AJ13: 0 | AK13: 0 | AL13: 0 | AM13: 0 | AN13: 0 | AO13: 0 | AP13: 0 | AQ13: 0 | AR13: 0 | AS13: 0 | AT13: 0 | AU13: 0 | AV13: 0 | AW13: 1 | AX13: 0 | AY13: 0 | AZ13: 0 | BA13: 0 | BB13: 0 | BC13: 0 | BD13: 0 | BE13: 0 | BF13: 0 | BG13: 0 | BH13: 0 | BI13: 0 | BJ13: 0 | BK13: 0 | BL13: 0 | BM13: 0 | BN13: 0 | BO13: 0 | BP13: 0 | BQ13: 0 | BR13: 0 | BS13: 0 | BT13: -1 | BU13: 0 | BV13: 0 | BW13: 0 | BX13: 0 | BY13: 0 | BZ13: 0 | CA13: 0 | CB13: 0 | CC13: 0 | CD13: 0
A14: Semis 2 Match 2 | B14: 2826 | C14: 3538 | D14: 1747 | E14: 230 | F14: 3452 | G14: 5687 | H14: 367 | I14: 181 | J14: 367 | K14: 176 | L14: 5 | M14: 0 | O14: 13 | P14: 0 | Q14: 0 | R14: 1 | S14: -1 | T14: 0 | U14: -1 | V14: 0 | W14: 0 | X14: 0 | Y14: 0 | Z14: -1 | AA14: 1 | AB14: 0 | AC14: 0 | AD14: 0 | AE14: 0 | AF14: 0 | AG14: 0 | AH14: 0 | AI14: 0 | AJ14: 0 | AK14: 0 | AL14: 0 | AM14: 0 | AN14: 0 | AO14: 0 | AP14: 0 | AQ14: 0 | AR14: 0 | AS14: 0 | AT14: 0 | AU14: 0 | AV14: 0 | AW14: 1 | AX14: 0 | AY14: 0 | AZ14: 0 | BA14: 0 | BB14: 0 | BC14: 0 | BD14: 0 | BE14: 0 | BF14: 0 | BG14: 0 | BH14: 0 | BI14: 0 | BJ14: 0 | BK14: 0 | BL14: 0 | BM14: 0 | BN14: 0 | BO14: 0 | BP14: 0 | BQ14: 0 | BR14: 0 | BS14: 0 | BT14: 0 | BU14: 0 | BV14: 0 | BW14: 0 | BX14: 0 | BY14: 0 | BZ14: 0 | CA14: 0 | CB14: 0 | CC14: 0 | CD14: 0
A15: Finals 1 | B15: 333 | C15: 3707 | D15: 195 | E15: 2826 | F15: 3538 | G15: 1747 | H15: 286 | I15: 353 | J15: 286 | K15: 328 | L15: 25 | M15: 0 | O15: 14 | P15: 1 | Q15: 1 | R15: -1 | S15: 0 | T15: 0 | U15: 0 | V15: 0 | W15: 0 | X15: 0 | Y15: 0 | Z15: 0 | AA15: -1 | AB15: 0 | AC15: 0 | AD15: 0 | AE15: 0 | AF15: 0 | AG15: 0 | AH15: 0 | AI15: 0 | AJ15: 0 | AK15: 0 | AL15: 0 | AM15: 0 | AN15: 0 | AO15: 0 | AP15: 0 | AQ15: 0 | AR15: 0 | AS15: 0 | AT15: 0 | AU15: 0 | AV15: 0 | AW15: -1 | AX15: 0 | AY15: 0 | AZ15: 0 | BA15: 0 | BB15: 0 | BC15: 0 | BD15: 0 | BE15: 0 | BF15: 0 | BG15: 0 | BH15: 0 | BI15: 0 | BJ15: 0 | BK15: 0 | BL15: 0 | BM15: 0 | BN15: 0 | BO15: 0 | BP15: 0 | BQ15: 0 | BR15: 0 | BS15: 0 | BT15: 0 | BU15: 0 | BV15: 0 | BW15: 0 | BX15: 0 | BY15: 0 | BZ15: 0 | CA15: 1 | CB15: =IF(($B15=CB$1)+($C15=CB$1)+($D15=CB$1),1,IF(($E15=CB$1)+($F15=CB$1)+($G15=CB$1),-1,0)) -> 0 | CC15: 0 | CD15: 0
A16: Finals 2 | B16: 333 | C16: 3707 | D16: 195 | E16: 2826 | F16: 3538 | G16: 1747 | H16: 407 | I16: 316 | J16: 407 | K16: 316 | L16: 0 | M16: 0 | O16: 15 | P16: 1 | Q16: =IF(($B16=Q$1)+($C16=Q$1)+($D16=Q$1),1,IF(($E16=Q$1)+($F16=Q$1)+($G16=Q$1),-1,0)) -> 1 | R16: -1 | S16: 0 | T16: 0 | U16: 0 | V16: 0 | W16: 0 | X16: 0 | Y16: 0 | Z16: 0 | AA16: -1 | AB16: 0 | AC16: 0 | AD16: 0 | AE16: 0 | AF16: 0 | AG16: 0 | AH16: 0 | AI16: 0 | AJ16: 0 | AK16: 0 | AL16: 0 | AM16: 0 | AN16: 0 | AO16: 0 | AP16: 0 | AQ16: 0 | AR16: 0 | AS16: 0 | AT16: 0 | AU16: 0 | AV16: 0 | AW16: -1 | AX16: 0 | AY16: 0 | AZ16: 0 | BA16: 0 | BB16: 0 | BC16: 0 | BD16: 0 | BE16: 0 | BF16: 0 | BG16: 0 | BH16: 0 | BI16: 0 | BJ16: 0 | BK16: 0 | BL16: 0 | BM16: 0 | BN16: 0 | BO16: 0 | BP16: 0 | BQ16: 0 | BR16: 0 | BS16: 0 | BT16: 0 | BU16: 0 | BV16: 0 | BW16: 0 | BX16: 0 | BY16: 0 | BZ16: 0 | CA16: 1 | CB16: 0 | CC16: 0 | CD16: 0
A17: Finals 3 | B17: 333 | C17: 3707 | D17: 195 | E17: 2826 | F17: 3538 | G17: 1747 | H17: 399 | I17: 330 | J17: 394 | K17: 300 | L17: 30 | M17: 5 | O17: 16 | P17: 1 | Q17: 1 | R17: -1 | S17: 0 | T17: 0 | U17: 0 | V17: 0 | W17: 0 | X17: 0 | Y17: 0 | Z17: 0 | AA17: -1 | AB17: 0 | AC17: 0 | AD17: 0 | AE17: 0 | AF17: 0 | AG17: 0 | AH17: 0 | AI17: 0 | AJ17: 0 | AK17: 0 | AL17: 0 | AM17: 0 | AN17: 0 | AO17: 0 | AP17: 0 | AQ17: 0 | AR17: 0 | AS17: 0 | AT17: 0 | AU17: 0 | AV17: 0 | AW17: -1 | AX17: 0 | AY17: 0 | AZ17: 0 | BA17: 0 | BB17: 0 | BC17: 0 | BD17: 0 | BE17: 0 | BF17: 0 | BG17: 0 | BH17: 0 | BI17: 0 | BJ17: 0 | BK17: 0 | BL17: 0 | BM17: 0 | BN17: 0 | BO17: 0 | BP17: 0 | BQ17: 0 | BR17: 0 | BS17: 0 | BT17: 0 | BU17: 0 | BV17: 0 | BW17: 0 | BX17: 0 | BY17: 0 | BZ17: 0 | CA17: 1 | CB17: 0 | CC17: 0 | CD17: 0

Sheet Daly
A1: Match | B1: Red 1 ID | C1: Red 2 ID | D1: Red 3 ID | E1: Blue 1 ID | F1: Blue 2 ID | G1: Blue 3ID | H1: Red | I1: Blue | J1: Radj | K1: Badj | L1: Bfoul | M1: Rfoul | O1: Match | P1: 4539 | Q1: 2767 | R1: 1629 | S1: 4362 | T1: 141 | U1: 2877 | V1: 4855 | W1: 469 | X1: 5561 | Y1: 237 | Z1: 346 | AA1: 1024 | AB1: 188 | AC1: 27 | AD1: 5517 | AE1: 401 | AF1: 3539 | AG1: 7048 | AH1: 3683 | AI1: 2729 | AJ1: 747 | AK1: 836 | AL1: 3534 | AM1: 663 | AN1: 145 | AO1: 2706 | AP1: 33 | AQ1: 1796 | AR1: 245 | AS1: 623 | AT1: 611 | AU1: 1189 | AV1: 610 | AW1: 3236 | AX1: 888 | AY1: 2013 | AZ1: 2170 | BA1: 614 | BB1: 2708 | BC1: 4481 | BD1: 4027 | BE1: 1305 | BF1: 1468 | BG1: 2783 | BH1: 337 | BI1: 3175 | BJ1: 4466 | BK1: 5148 | BL1: 5030 | BM1: 6753 | BN1: 2512 | BO1: 4308 | BP1: 4327 | BQ1: 6868 | BR1: 810 | BS1: 74 | BT1: 7153 | BU1: 3637 | BV1: 3171 | BW1: 5962 | BX1: 3950 | BY1: 1076 | BZ1: 5243 | CA1: 329 | CB1: 6964 | CC1: 4811 | CD1: 1739 | CE1: 369
A2: Quarters 1 Match 1 | B2: 4539 | C2: 3683 | D2: 346 | E2: 469 | F2: 610 | G2: 3539 | H2: 321 | I2: 348 | J2: =H2-M2 -> 316 | K2: =I2-L2 -> 308 | L2: 40 | M2: 5 | O2: 1 | P2: =IF(($B2=P$1)+($C2=P$1)+($D2=P$1),1,IF(($E2=P$1)+($F2=P$1)+($G2=P$1),-1,0)) -> 1 | Q2: =IF(($B2=Q$1)+($C2=Q$1)+($D2=Q$1),1,IF(($E2=Q$1)+($F2=Q$1)+($G2=Q$1),-1,0)) -> 0 | R2: 0 | S2: 0 | T2: 0 | U2: 0 | V2: 0 | W2: -1 | X2: 0 | Y2: 0 | Z2: 1 | AA2: 0 | AB2: 0 | AC2: 0 | AD2: 0 | AE2: 0 | AF2: -1 | AG2: 0 | AH2: 1 | AI2: 0 | AJ2: 0 | AK2: 0 | AL2: 0 | AM2: 0 | AN2: 0 | AO2: 0 | AP2: 0 | AQ2: 0 | AR2: 0 | AS2: 0 | AT2: 0 | AU2: 0 | AV2: -1 | AW2: 0 | AX2: 0 | AY2: 0 | AZ2: 0 | BA2: 0 | BB2: 0 | BC2: 0 | BD2: 0 | BE2: 0 | BF2: 0 | BG2: 0 | BH2: 0 | BI2: 0 | BJ2: 0 | BK2: 0 | BL2: 0 | BM2: 0 | BN2: 0 | BO2: 0 | BP2: 0 | BQ2: 0 | BR2: 0 | BS2: 0 | BT2: 0 | BU2: 0 | BV2: 0 | BW2: 0 | BX2: 0 | BY2: 0 | BZ2: 0 | CA2: 0 | CB2: 0 | CC2: =IF(($B2=CC$1)+($C2=CC$1)+($D2=CC$1),1,IF(($E2=CC$1)+($F2=CC$1)+($G2=CC$1),-1,0)) -> 0 | CD2: 0 | CE2: 0
A3: Quarters 1 Match 2 | B3: 4539 | C3: 3683 | D3: 346 | E3: 469 | F3: 610 | G3: 3539 | H3: 244 | I3: 404 | J3: =H3-M3 -> 244 | K3: =I3-L3 -> 389 | L3: 15 | M3: 0 | O3: 2 | P3: =IF(($B3=P$1)+($C3=P$1)+($D3=P$1),1,IF(($E3=P$1)+($F3=P$1)+($G3=P$1),-1,0)) -> 1 | Q3: 0 | R3: 0 | S3: 0 | T3: 0 | U3: 0 | V3: 0 | W3: -1 | X3: 0 | Y3: 0 | Z3: 1 | AA3: 0 | AB3: 0 | AC3: 0 | AD3: 0 | AE3: 0 | AF3: -1 | AG3: 0 | AH3: 1 | AI3: 0 | AJ3: 0 | AK3: 0 | AL3: 0 | AM3: 0 | AN3: 0 | AO3: 0 | AP3: 0 | AQ3: 0 | AR3: 0 | AS3: 0 | AT3: 0 | AU3: 0 | AV3: -1 | AW3: 0 | AX3: 0 | AY3: 0 | AZ3: 0 | BA3: 0 | BB3: 0 | BC3: 0 | BD3: 0 | BE3: 0 | BF3: 0 | BG3: 0 | BH3: 0 | BI3: 0 | BJ3: 0 | BK3: 0 | BL3: 0 | BM3: 0 | BN3: 0 | BO3: 0 | BP3: 0 | BQ3: 0 | BR3: 0 | BS3: 0 | BT3: 0 | BU3: 0 | BV3: 0 | BW3: 0 | BX3: 0 | BY3: 0 | BZ3: 0 | CA3: 0 | CB3: 0 | CC3: 0 | CD3: 0 | CE3: 0
A4: Quarters 2 Match 1 | B4: 4362 | C4: 747 | D4: 1305 | E4: 2013 | F4: 141 | G4: 2706 | H4: 351 | I4: 379 | J4: 311 | K4: 374 | L4: 5 | M4: 40 | O4: 3 | P4: 0 | Q4: =IF(($B4=Q$1)+($C4=Q$1)+($D4=Q$1),1,IF(($E4=Q$1)+($F4=Q$1)+($G4=Q$1),-1,0)) -> 0 | R4: 0 | S4: 1 | T4: -1 | U4: 0 | V4: 0 | W4: 0 | X4: 0 | Y4: 0 | Z4: 0 | AA4: 0 | AB4: 0 | AC4: 0 | AD4: 0 | AE4: 0 | AF4: 0 | AG4: 0 | AH4: 0 | AI4: 0 | AJ4: 1 | AK4: 0 | AL4: 0 | AM4: 0 | AN4: 0 | AO4: -1 | AP4: 0 | AQ4: 0 | AR4: 0 | AS4: 0 | AT4: 0 | AU4: 0 | AV4: 0 | AW4: 0 | AX4: 0 | AY4: -1 | AZ4: 0 | BA4: 0 | BB4: 0 | BC4: 0 | BD4: 0 | BE4: 1 | BF4: 0 | BG4: 0 | BH4: 0 | BI4: 0 | BJ4: 0 | BK4: 0 | BL4: 0 | BM4: 0 | BN4: 0 | BO4: 0 | BP4: 0 | BQ4: 0 | BR4: 0 | BS4: 0 | BT4: 0 | BU4: 0 | BV4: 0 | BW4: 0 | BX4: 0 | BY4: 0 | BZ4: 0 | CA4: 0 | CB4: 0 | CC4: 0 | CD4: 0 | CE4: 0
A5: Quarters 2 Match 2 | B5: 4362 | C5: 747 | D5: 1305 | E5: 2013 | F5: 141 | G5: 2706 | H5: 0 | I5: 310 | J5: -35 | K5: 300 | L5: 10 | M5: 35 | O5: 4 | P5: 0 | Q5: 0 | R5: 0 | S5: 1 | T5: -1 | U5: 0 | V5: 0 | W5: 0 | X5: 0 | Y5: 0 | Z5: 0 | AA5: 0 | AB5: 0 | AC5: 0 | AD5: 0 | AE5: 0 | AF5: 0 | AG5: 0 | AH5: 0 | AI5: 0 | AJ5: 1 | AK5: 0 | AL5: 0 | AM5: 0 | AN5: 0 | AO5: -1 | AP5: 0 | AQ5: 0 | AR5: 0 | AS5: 0 | AT5: 0 | AU5: 0 | AV5: 0 | AW5: 0 | AX5: 0 | AY5: -1 | AZ5: 0 | BA5: 0 | BB5: 0 | BC5: 0 | BD5: 0 | BE5: 1 | BF5: 0 | BG5: 0 | BH5: 0 | BI5: 0 | BJ5: 0 | BK5: 0 | BL5: 0 | BM5: 0 | BN5: 0 | BO5: 0 | BP5: 0 | BQ5: 0 | BR5: 0 | BS5: 0 | BT5: 0 | BU5: 0 | BV5: 0 | BW5: 0 | BX5: 0 | BY5: 0 | BZ5: 0 | CA5: 0 | CB5: 0 | CC5: 0 | CD5: 0 | CE5: 0
A6: Quarters 3 Match 1 | B6: 2708 | C6: 27 | D6: 2767 | E6: 1796 | F6: 4855 | G6: 245 | H6: 400 | I6: 347 | J6: 395 | K6: 342 | L6: 5 | M6: 5 | O6: 5 | P6: 0 | Q6: 1 | R6: 0 | S6: 0 | T6: 0 | U6: 0 | V6: -1 | W6: 0 | X6: 0 | Y6: 0 | Z6: 0 | AA6: 0 | AB6: 0 | AC6: 1 | AD6: 0 | AE6: 0 | AF6: 0 | AG6: 0 | AH6: 0 | AI6: 0 | AJ6: 0 | AK6: 0 | AL6: 0 | AM6: 0 | AN6: 0 | AO6: 0 | AP6: 0 | AQ6: -1 | AR6: -1 | AS6: 0 | AT6: 0 | AU6: 0 | AV6: 0 | AW6: 0 | AX6: 0 | AY6: 0 | AZ6: 0 | BA6: 0 | BB6: 1 | BC6: 0 | BD6: 0 | BE6: 0 | BF6: 0 | BG6: 0 | BH6: 0 | BI6: 0 | BJ6: 0 | BK6: 0 | BL6: 0 | BM6: 0 | BN6: 0 | BO6: 0 | BP6: 0 | BQ6: 0 | BR6: 0 | BS6: 0 | BT6: 0 | BU6: 0 | BV6: 0 | BW6: 0 | BX6: 0 | BY6: 0 | BZ6: 0 | CA6: 0 | CB6: 0 | CC6: 0 | CD6: 0 | CE6: 0
A7: Quarters 3 Match 2 | B7: 2708 | C7: 27 | D7: 2767 | E7: 1796 | F7: 4855 | G7: 237 | H7: 418 | I7: 284 | J7: 408 | K7: 279 | L7: 5 | M7: 10 | O7: 6 | P7: 0 | Q7: 1 | R7: 0 | S7: 0 | T7: 0 | U7: 0 | V7: -1 | W7: 0 | X7: 0 | Y7: -1 | Z7: 0 | AA7: 0 | AB7: 0 | AC7: 1 | AD7: 0 | AE7: 0 | AF7: 0 | AG7: 0 | AH7: 0 | AI7: 0 | AJ7: 0 | AK7: 0 | AL7: 0 | AM7: 0 | AN7: 0 | AO7: 0 | AP7: 0 | AQ7: -1 | AR7: 0 | AS7: 0 | AT7: 0 | AU7: 0 | AV7: 0 | AW7: 0 | AX7: 0 | AY7: 0 | AZ7: 0 | BA7: 0 | BB7: 1 | BC7: 0 | BD7: 0 | BE7: 0 | BF7: 0 | BG7: 0 | BH7: 0 | BI7: 0 | BJ7: 0 | BK7: 0 | BL7: 0 | BM7: 0 | BN7: 0 | BO7: 0 | BP7: 0 | BQ7: 0 | BR7: 0 | BS7: 0 | BT7: 0 | BU7: 0 | BV7: 0 | BW7: 0 | BX7: 0 | BY7: 0 | BZ7: 0 | CA7: 0 | CB7: =IF(($B7=CB$1)+($C7=CB$1)+($D7=CB$1),1,IF(($E7=CB$1)+($F7=CB$1)+($G7=CB$1),-1,0)) -> 0 | CC7: 0 | CD7: 0 | CE7: 0
A8: Quarters 4 Match 1 | B8: 33 | C8: 1629 | D8: 836 | E8: 188 | F8: 2877 | G8: 1024 | H8: 272 | I8: 408 | J8: 267 | K8: 358 | L8: 50 | M8: 5 | O8: 7 | P8: 0 | Q8: =IF(($B8=Q$1)+($C8=Q$1)+($D8=Q$1),1,IF(($E8=Q$1)+($F8=Q$1)+($G8=Q$1),-1,0)) -> 0 | R8: 1 | S8: 0 | T8: 0 | U8: -1 | V8: 0 | W8: 0 | X8: 0 | Y8: 0 | Z8: 0 | AA8: -1 | AB8: -1 | AC8: 0 | AD8: 0 | AE8: 0 | AF8: 0 | AG8: 0 | AH8: 0 | AI8: 0 | AJ8: 0 | AK8: 1 | AL8: 0 | AM8: 0 | AN8: 0 | AO8: 0 | AP8: 1 | AQ8: 0 | AR8: 0 | AS8: 0 | AT8: 0 | AU8: 0 | AV8: 0 | AW8: 0 | AX8: 0 | AY8: 0 | AZ8: 0 | BA8: 0 | BB8: 0 | BC8: 0 | BD8: 0 | BE8: 0 | BF8: 0 | BG8: 0 | BH8: 0 | BI8: 0 | BJ8: 0 | BK8: 0 | BL8: 0 | BM8: 0 | BN8: 0 | BO8: 0 | BP8: 0 | BQ8: 0 | BR8: 0 | BS8: 0 | BT8: 0 | BU8: 0 | BV8: 0 | BW8: 0 | BX8: 0 | BY8: 0 | BZ8: 0 | CA8: 0 | CB8: 0 | CC8: 0 | CD8: 0 | CE8: 0
A9: Quarters 4 Match 2 | B9: 33 | C9: 1629 | D9: 836 | E9: 188 | F9: 2877 | G9: 1024 | H9: 330 | I9: 439 | J9: 275 | K9: 414 | L9: 25 | M9: 55 | O9: 8 | P9: 0 | Q9: 0 | R9: 1 | S9: 0 | T9: 0 | U9: -1 | V9: 0 | W9: 0 | X9: 0 | Y9: 0 | Z9: 0 | AA9: -1 | AB9: -1 | AC9: 0 | AD9: 0 | AE9: 0 | AF9: 0 | AG9: 0 | AH9: 0 | AI9: 0 | AJ9: 0 | AK9: 1 | AL9: 0 | AM9: 0 | AN9: 0 | AO9: 0 | AP9: 1 | AQ9: 0 | AR9: 0 | AS9: 0 | AT9: 0 | AU9: 0 | AV9: 0 | AW9: 0 | AX9: 0 | AY9: 0 | AZ9: 0 | BA9: 0 | BB9: 0 | BC9: 0 | BD9: 0 | BE9: 0 | BF9: 0 | BG9: 0 | BH9: 0 | BI9: 0 | BJ9: 0 | BK9: 0 | BL9: 0 | BM9: 0 | BN9: 0 | BO9: 0 | BP9: 0 | BQ9: 0 | BR9: 0 | BS9: 0 | BT9: 0 | BU9: 0 | BV9: 0 | BW9: 0 | BX9: 0 | BY9: 0 | BZ9: 0 | CA9: 0 | CB9: 0 | CC9: 0 | CD9: 0 | CE9: 0
A10: Semis 1 Match 1 | B10: 469 | C10: 610 | D10: 3539 | E10: 2013 | F10: 141 | G10: 2706 | H10: 400 | I10: 304 | J10: 395 | K10: 299 | L10: 5 | M10: 5 | O10: 9 | P10: 0 | Q10: 0 | R10: 0 | S10: 0 | T10: -1 | U10: 0 | V10: 0 | W10: 1 | X10: 0 | Y10: 0 | Z10: 0 | AA10: 0 | AB10: 0 | AC10: 0 | AD10: 0 | AE10: 0 | AF10: 1 | AG10: 0 | AH10: 0 | AI10: 0 | AJ10: 0 | AK10: 0 | AL10: 0 | AM10: 0 | AN10: 0 | AO10: -1 | AP10: 0 | AQ10: 0 | AR10: 0 | AS10: 0 | AT10: 0 | AU10: 0 | AV10: 1 | AW10: 0 | AX10: 0 | AY10: -1 | AZ10: 0 | BA10: 0 | BB10: 0 | BC10: 0 | BD10: 0 | BE10: 0 | BF10: 0 | BG10: 0 | BH10: 0 | BI10: 0 | BJ10: 0 | BK10: 0 | BL10: 0 | BM10: 0 | BN10: 0 | BO10: 0 | BP10: 0 | BQ10: 0 | BR10: 0 | BS10: 0 | BT10: 0 | BU10: 0 | BV10: 0 | BW10: 0 | BX10: 0 | BY10: 0 | BZ10: 0 | CA10: 0 | CB10: 0 | CC10: 0 | CD10: 0 | CE10: 0
A11: Semis 1 Match 2 | B11: 469 | C11: 610 | D11: 3539 | E11: 2013 | F11: 141 | G11: 2706 | H11: 253 | I11: 402 | J11: 238 | K11: 402 | L11: 0 | M11: 15 | O11: 10 | P11: 0 | Q11: 0 | R11: 0 | S11: 0 | T11: -1 | U11: 0 | V11: 0 | W11: 1 | X11: 0 | Y11: 0 | Z11: 0 | AA11: 0 | AB11: 0 | AC11: 0 | AD11: 0 | AE11: 0 | AF11: 1 | AG11: 0 | AH11: 0 | AI11: 0 | AJ11: 0 | AK11: 0 | AL11: 0 | AM11: 0 | AN11: 0 | AO11: -1 | AP11: 0 | AQ11: 0 | AR11: 0 | AS11: 0 | AT11: 0 | AU11: 0 | AV11: 1 | AW11: 0 | AX11: 0 | AY11: -1 | AZ11: 0 | BA11: 0 | BB11: 0 | BC11: 0 | BD11: 0 | BE11: 0 | BF11: 0 | BG11: 0 | BH11: 0 | BI11: 0 | BJ11: 0 | BK11: 0 | BL11: 0 | BM11: 0 | BN11: 0 | BO11: 0 | BP11: 0 | BQ11: 0 | BR11: 0 | BS11: 0 | BT11: 0 | BU11: 0 | BV11: 0 | BW11: 0 | BX11: 0 | BY11: 0 | BZ11: 0 | CA11: 0 | CB11: =IF(($B11=CB$1)+($C11=CB$1)+($D11=CB$1),1,IF(($E11=CB$1)+($F11=CB$1)+($G11=CB$1),-1,0)) -> 0 | CC11: 0 | CD11: 0 | CE11: 0
A12: Semis 1 Match 3 | B12: 469 | C12: 610 | D12: 3539 | E12: 2013 | F12: 141 | G12: 2706 | H12: 315 | I12: 393 | J12: 305 | K12: 388 | L12: 5 | M12: 10 | O12: 11 | P12: 0 | Q12: =IF(($B12=Q$1)+($C12=Q$1)+($D12=Q$1),1,IF(($E12=Q$1)+($F12=Q$1)+($G12=Q$1),-1,0)) -> 0 | R12: 0 | S12: 0 | T12: -1 | U12: 0 | V12: 0 | W12: 1 | X12: 0 | Y12: 0 | Z12: 0 | AA12: 0 | AB12: 0 | AC12: 0 | AD12: 0 | AE12: 0 | AF12: 1 | AG12: 0 | AH12: 0 | AI12: 0 | AJ12: 0 | AK12: 0 | AL12: 0 | AM12: 0 | AN12: 0 | AO12: -1 | AP12: 0 | AQ12: 0 | AR12: 0 | AS12: 0 | AT12: 0 | AU12: 0 | AV12: 1 | AW12: 0 | AX12: 0 | AY12: -1 | AZ12: 0 | BA12: 0 | BB12: 0 | BC12: 0 | BD12: 0 | BE12: 0 | BF12: 0 | BG12: 0 | BH12: 0 | BI12: 0 | BJ12: 0 | BK12: 0 | BL12: 0 | BM12: 0 | BN12: 0 | BO12: 0 | BP12: 0 | BQ12: 0 | BR12: 0 | BS12: 0 | BT12: 0 | BU12: 0 | BV12: 0 | BW12: 0 | BX12: 0 | BY12: 0 | BZ12: 0 | CA12: 0 | CB12: 0 | CC12: 0 | CD12: 0 | CE12: 0
A13: Semis 2 Match 1 | B13: 2708 | C13: 27 | D13: 2767 | E13: 188 | F13: 2877 | G13: 1024 | H13: 426 | I13: 242 | J13: 426 | K13: 242 | L13: 0 | M13: 0 | O13: 12 | P13: 0 | Q13: 1 | R13: 0 | S13: 0 | T13: 0 | U13: -1 | V13: 0 | W13: 0 | X13: 0 | Y13: 0 | Z13: 0 | AA13: -1 | AB13: -1 | AC13: 1 | AD13: 0 | AE13: 0 | AF13: 0 | AG13: 0 | AH13: 0 | AI13: 0 | AJ13: 0 | AK13: 0 | AL13: 0 | AM13: 0 | AN13: 0 | AO13: 0 | AP13: 0 | AQ13: 0 | AR13: 0 | AS13: 0 | AT13: 0 | AU13: 0 | AV13: 0 | AW13: 0 | AX13: 0 | AY13: 0 | AZ13: 0 | BA13: 0 | BB13: 1 | BC13: 0 | BD13: 0 | BE13: 0 | BF13: 0 | BG13: 0 | BH13: 0 | BI13: 0 | BJ13: 0 | BK13: 0 | BL13: 0 | BM13: 0 | BN13: 0 | BO13: 0 | BP13: 0 | BQ13: 0 | BR13: 0 | BS13: 0 | BT13: 0 | BU13: 0 | BV13: 0 | BW13: 0 | BX13: 0 | BY13: 0 | BZ13: 0 | CA13: 0 | CB13: 0 | CC13: 0 | CD13: 0 | CE13: 0
A14: Semis 2 Match 2 | B14: 2708 | C14: 27 | D14: 2767 | E14: 188 | F14: 2877 | G14: 1024 | H14: 396 | I14: 250 | J14: 396 | K14: 220 | L14: 30 | M14: 0 | O14: 13 | P14: 0 | Q14: 1 | R14: 0 | S14: 0 | T14: 0 | U14: -1 | V14: 0 | W14: 0 | X14: 0 | Y14: 0 | Z14: 0 | AA14: -1 | AB14: -1 | AC14: 1 | AD14: 0 | AE14: 0 | AF14: 0 | AG14: 0 | AH14: 0 | AI14: 0 | AJ14: 0 | AK14: 0 | AL14: 0 | AM14: 0 | AN14: 0 | AO14: 0 | AP14: 0 | AQ14: 0 | AR14: 0 | AS14: 0 | AT14: 0 | AU14: 0 | AV14: 0 | AW14: 0 | AX14: 0 | AY14: 0 | AZ14: 0 | BA14: 0 | BB14: 1 | BC14: 0 | BD14: 0 | BE14: 0 | BF14: 0 | BG14: 0 | BH14: 0 | BI14: 0 | BJ14: 0 | BK14: 0 | BL14: 0 | BM14: 0 | BN14: 0 | BO14: 0 | BP14: 0 | BQ14: 0 | BR14: 0 | BS14: 0 | BT14: 0 | BU14: 0 | BV14: 0 | BW14: 0 | BX14: 0 | BY14: 0 | BZ14: 0 | CA14: 0 | CB14: 0 | CC14: 0 | CD14: 0 | CE14: 0
A15: Finals 1 | B15: 2013 | C15: 141 | D15: 2706 | E15: 2708 | F15: 27 | G15: 2767 | H15: 426 | I15: 317 | J15: 401 | K15: 317 | L15: 0 | M15: 25 | O15: 14 | P15: 0 | Q15: -1 | R15: 0 | S15: 0 | T15: 1 | U15: 0 | V15: 0 | W15: 0 | X15: 0 | Y15: 0 | Z15: 0 | AA15: 0 | AB15: 0 | AC15: -1 | AD15: 0 | AE15: 0 | AF15: 0 | AG15: 0 | AH15: 0 | AI15: 0 | AJ15: 0 | AK15: 0 | AL15: 0 | AM15: 0 | AN15: 0 | AO15: 1 | AP15: 0 | AQ15: 0 | AR15: 0 | AS15: 0 | AT15: 0 | AU15: 0 | AV15: 0 | AW15: 0 | AX15: 0 | AY15: 1 | AZ15: 0 | BA15: 0 | BB15: -1 | BC15: 0 | BD15: 0 | BE15: 0 | BF15: 0 | BG15: 0 | BH15: 0 | BI15: 0 | BJ15: 0 | BK15: 0 | BL15: 0 | BM15: 0 | BN15: 0 | BO15: 0 | BP15: 0 | BQ15: 0 | BR15: 0 | BS15: 0 | BT15: 0 | BU15: 0 | BV15: 0 | BW15: 0 | BX15: 0 | BY15: 0 | BZ15: 0 | CA15: 0 | CB15: =IF(($B15=CB$1)+($C15=CB$1)+($D15=CB$1),1,IF(($E15=CB$1)+($F15=CB$1)+($G15=CB$1),-1,0)) -> 0 | CC15: 0 | CD15: 0 | CE15: 0
A16: Finals 2 | B16: 2013 | C16: 141 | D16: 2706 | E16: 4027 | F16: 27 | G16: 2767 | H16: 139 | I16: 362 | J16: 139 | K16: 362 | L16: 0 | M16: 0 | O16: 15 | P16: 0 | Q16: =IF(($B16=Q$1)+($C16=Q$1)+($D16=Q$1),1,IF(($E16=Q$1)+($F16=Q$1)+($G16=Q$1),-1,0)) -> -1 | R16: 0 | S16: 0 | T16: 1 | U16: 0 | V16: 0 | W16: 0 | X16: 0 | Y16: 0 | Z16: 0 | AA16: 0 | AB16: 0 | AC16: -1 | AD16: 0 | AE16: 0 | AF16: 0 | AG16: 0 | AH16: 0 | AI16: 0 | AJ16: 0 | AK16: 0 | AL16: 0 | AM16: 0 | AN16: 0 | AO16: 1 | AP16: 0 | AQ16: 0 | AR16: 0 | AS16: 0 | AT16: 0 | AU16: 0 | AV16: 0 | AW16: 0 | AX16: 0 | AY16: 1 | AZ16: 0 | BA16: 0 | BB16: 0 | BC16: 0 | BD16: -1 | BE16: 0 | BF16: 0 | BG16: 0 | BH16: 0 | BI16: 0 | BJ16: 0 | BK16: 0 | BL16: 0 | BM16: 0 | BN16: 0 | BO16: 0 | BP16: 0 | BQ16: 0 | BR16: 0 | BS16: 0 | BT16: 0 | BU16: 0 | BV16: 0 | BW16: 0 | BX16: 0 | BY16: 0 | BZ16: 0 | CA16: 0 | CB16: 0 | CC16: 0 | CD16: 0 | CE16: 0
A17: Finals 3 | B17: 2013 | C17: 141 | D17: 2706 | E17: 4027 | F17: 27 | G17: 2767 | H17: 241 | I17: 478 | J17: 241 | K17: 478 | L17: 0 | M17: 0 | O17: 16 | P17: 0 | Q17: -1 | R17: 0 | S17: 0 | T17: 1 | U17: 0 | V17: 0 | W17: 0 | X17: 0 | Y17: 0 | Z17: 0 | AA17: 0 | AB17: 0 | AC17: -1 | AD17: 0 | AE17: 0 | AF17: 0 | AG17: 0 | AH17: 0 | AI17: 0 | AJ17: 0 | AK17: 0 | AL17: 0 | AM17: 0 | AN17: 0 | AO17: 1 | AP17: 0 | AQ17: 0 | AR17: 0 | AS17: 0 | AT17: 0 | AU17: 0 | AV17: 0 | AW17: 0 | AX17: 0 | AY17: 1 | AZ17: 0 | BA17: 0 | BB17: 0 | BC17: 0 | BD17: -1 | BE17: 0 | BF17: 0 | BG17: 0 | BH17: 0 | BI17: 0 | BJ17: 0 | BK17: 0 | BL17: 0 | BM17: 0 | BN17: 0 | BO17: 0 | BP17: 0 | BQ17: 0 | BR17: 0 | BS17: 0 | BT17: 0 | BU17: 0 | BV17: 0 | BW17: 0 | BX17: 0 | BY17: 0 | BZ17: 0 | CA17: 0 | CB17: 0 | CC17: 0 | CD17: 0 | CE17: 0

Sheet Darwin
A1: Match | B1: Red 1 ID | C1: Red 2 ID | D1: Red 3 ID | E1: Blue 1 ID | F1: Blue 2 ID | G1: Blue 3ID | H1: Red | I1: Blue | J1: Radj | K1: Badj | L1: Bfoul | M1: Rfoul | O1: Match | P1: 56 | Q1: 5406 | R1: 3536 | S1: 176 | T1: 3542 | U1: 494 | V1: 865 | W1: 234 | X1: 4946 | Y1: 125 | Z1: 4028 | AA1: 1391 | AB1: 2337 | AC1: 177 | AD1: 2194 | AE1: 1625 | AF1: 772 | AG1: 1519 | AH1: 5036 | AI1: 2834 | AJ1: 6869 | AK1: 3461 | AL1: 4917 | AM1: 4198 | AN1: 2791 | AO1: 578 | AP1: 5914 | AQ1: 5883 | AR1: 6936 | AS1: 3844 | AT1: 5234 | AU1: 2451 | AV1: 2481 | AW1: 4458 | AX1: 3572 | AY1: 51 | AZ1: 247 | BA1: 365 | BB1: 6193 | BC1: 3274 | BD1: 3535 | BE1: 78 | BF1: 5443 | BG1: 6947 | BH1: 5740 | BI1: 1018 | BJ1: 3695 | BK1: 1418 | BL1: 3130 | BM1: 2501 | BN1: 5434 | BO1: 548 | BP1: 157 | BQ1: 5339 | BR1: 111 | BS1: 5492 | BT1: 977 | BU1: 4122 | BV1: 4645 | BW1: 6823 | BX1: 6590 | BY1: 4905 | BZ1: 3504 | CA1: 1711 | CB1: 857 | CC1: 250 | CD1: 3117
A2: Quarters 1 Match 1 | B2: 4028 | C2: 56 | D2: 1391 | E2: 2834 | F2: 4946 | G2: 2791 | H2: 333 | I2: 258 | J2: =H2-M2 -> 303 | K2: =I2-L2 -> 258 | L2: 0 | M2: 30 | O2: 1 | P2: =IF(($B2=P$1)+($C2=P$1)+($D2=P$1),1,IF(($E2=P$1)+($F2=P$1)+($G2=P$1),-1,0)) -> 1 | Q2: =IF(($B2=Q$1)+($C2=Q$1)+($D2=Q$1),1,IF(($E2=Q$1)+($F2=Q$1)+($G2=Q$1),-1,0)) -> 0 | R2: 0 | S2: 0 | T2: 0 | U2: 0 | V2: 0 | W2: 0 | X2: -1 | Y2: 0 | Z2: 1 | AA2: 1 | AB2: 0 | AC2: 0 | AD2: 0 | AE2: 0 | AF2: 0 | AG2: 0 | AH2: 0 | AI2: -1 | AJ2: 0 | AK2: 0 | AL2: 0 | AM2: 0 | AN2: -1 | AO2: 0 | AP2: 0 | AQ2: 0 | AR2: 0 | AS2: 0 | AT2: 0 | AU2: 0 | AV2: 0 | AW2: 0 | AX2: 0 | AY2: 0 | AZ2: 0 | BA2: 0 | BB2: 0 | BC2: 0 | BD2: 0 | BE2: 0 | BF2: 0 | BG2: 0 | BH2: 0 | BI2: 0 | BJ2: 0 | BK2: 0 | BL2: 0 | BM2: 0 | BN2: 0 | BO2: 0 | BP2: 0 | BQ2: 0 | BR2: 0 | BS2: 0 | BT2: 0 | BU2: 0 | BV2: 0 | BW2: 0 | BX2: 0 | BY2: 0 | BZ2: 0 | CA2: 0 | CB2: 0 | CC2: =IF(($B2=CC$1)+($C2=CC$1)+($D2=CC$1),1,IF(($E2=CC$1)+($F2=CC$1)+($G2=CC$1),-1,0)) -> 0 | CD2: 0
A3: Quarters 1 Match 2 | B3: 4028 | C3: 1391 | D3: 56 | E3: 2834 | F3: 4946 | G3: 2791 | H3: 337 | I3: 328 | J3: =H3-M3 -> 332 | K3: =I3-L3 -> 308 | L3: 20 | M3: 5 | O3: 2 | P3: =IF(($B3=P$1)+($C3=P$1)+($D3=P$1),1,IF(($E3=P$1)+($F3=P$1)+($G3=P$1),-1,0)) -> 1 | Q3: 0 | R3: 0 | S3: 0 | T3: 0 | U3: 0 | V3: 0 | W3: 0 | X3: -1 | Y3: 0 | Z3: 1 | AA3: 1 | AB3: 0 | AC3: 0 | AD3: 0 | AE3: 0 | AF3: 0 | AG3: 0 | AH3: 0 | AI3: -1 | AJ3: 0 | AK3: 0 | AL3: 0 | AM3: 0 | AN3: -1 | AO3: 0 | AP3: 0 | AQ3: 0 | AR3: 0 | AS3: 0 | AT3: 0 | AU3: 0 | AV3: 0 | AW3: 0 | AX3: 0 | AY3: 0 | AZ3: 0 | BA3: 0 | BB3: 0 | BC3: 0 | BD3: 0 | BE3: 0 | BF3: 0 | BG3: 0 | BH3: 0 | BI3: 0 | BJ3: 0 | BK3: 0 | BL3: 0 | BM3: 0 | BN3: 0 | BO3: 0 | BP3: 0 | BQ3: 0 | BR3: 0 | BS3: 0 | BT3: 0 | BU3: 0 | BV3: 0 | BW3: 0 | BX3: 0 | BY3: 0 | BZ3: 0 | CA3: 0 | CB3: 0 | CC3: 0 | CD3: 0
A4: Quarters 2 Match 1 | B4: 772 | C4: 176 | D4: 177 | E4: 3542 | F4: 2337 | G4: 1018 | H4: 300 | I4: 447 | J4: 290 | K4: 442 | L4: 5 | M4: 10 | O4: 3 | P4: 0 | Q4: =IF(($B4=Q$1)+($C4=Q$1)+($D4=Q$1),1,IF(($E4=Q$1)+($F4=Q$1)+($G4=Q$1),-1,0)) -> 0 | R4: 0 | S4: 1 | T4: -1 | U4: 0 | V4: 0 | W4: 0 | X4: 0 | Y4: 0 | Z4: 0 | AA4: 0 | AB4: -1 | AC4: 1 | AD4: 0 | AE4: 0 | AF4: 1 | AG4: 0 | AH4: 0 | AI4: 0 | AJ4: 0 | AK4: 0 | AL4: 0 | AM4: 0 | AN4: 0 | AO4: 0 | AP4: 0 | AQ4: 0 | AR4: 0 | AS4: 0 | AT4: 0 | AU4: 0 | AV4: 0 | AW4: 0 | AX4: 0 | AY4: 0 | AZ4: 0 | BA4: 0 | BB4: 0 | BC4: 0 | BD4: 0 | BE4: 0 | BF4: 0 | BG4: 0 | BH4: 0 | BI4: -1 | BJ4: 0 | BK4: 0 | BL4: 0 | BM4: 0 | BN4: 0 | BO4: 0 | BP4: 0 | BQ4: 0 | BR4: 0 | BS4: 0 | BT4: 0 | BU4: 0 | BV4: 0 | BW4: 0 | BX4: 0 | BY4: 0 | BZ4: 0 | CA4: 0 | CB4: 0 | CC4: 0 | CD4: 0
A5: Quarters 2 Match 2 | B5: 772 | C5: 177 | D5: 176 | E5: 3542 | F5: 2337 | G5: 1018 | H5: 540 | I5: 356 | J5: 500 | K5: 351 | L5: 5 | M5: 40 | O5: 4 | P5: 0 | Q5: 0 | R5: 0 | S5: 1 | T5: -1 | U5: 0 | V5: 0 | W5: 0 | X5: 0 | Y5: 0 | Z5: 0 | AA5: 0 | AB5: -1 | AC5: 1 | AD5: 0 | AE5: 0 | AF5: 1 | AG5: 0 | AH5: 0 | AI5: 0 | AJ5: 0 | AK5: 0 | AL5: 0 | AM5: 0 | AN5: 0 | AO5: 0 | AP5: 0 | AQ5: 0 | AR5: 0 | AS5: 0 | AT5: 0 | AU5: 0 | AV5: 0 | AW5: 0 | AX5: 0 | AY5: 0 | AZ5: 0 | BA5: 0 | BB5: 0 | BC5: 0 | BD5: 0 | BE5: 0 | BF5: 0 | BG5: 0 | BH5: 0 | BI5: -1 | BJ5: 0 | BK5: 0 | BL5: 0 | BM5: 0 | BN5: 0 | BO5: 0 | BP5: 0 | BQ5: 0 | BR5: 0 | BS5: 0 | BT5: 0 | BU5: 0 | BV5: 0 | BW5: 0 | BX5: 0 | BY5: 0 | BZ5: 0 | CA5: 0 | CB5: 0 | CC5: 0 | CD5: 0
A6: Quarters 2 Match 3 | B6: 772 | C6: 177 | D6: 176 | E6: 3542 | F6: 2337 | G6: 1018 | H6: 446 | I6: 277 | J6: 441 | K6: 252 | L6: 25 | M6: 5 | O6: 5 | P6: 0 | Q6: 0 | R6: 0 | S6: 1 | T6: -1 | U6: 0 | V6: 0 | W6: 0 | X6: 0 | Y6: 0 | Z6: 0 | AA6: 0 | AB6: -1 | AC6: 1 | AD6: 0 | AE6: 0 | AF6: 1 | AG6: 0 | AH6: 0 | AI6: 0 | AJ6: 0 | AK6: 0 | AL6: 0 | AM6: 0 | AN6: 0 | AO6: 0 | AP6: 0 | AQ6: 0 | AR6: 0 | AS6: 0 | AT6: 0 | AU6: 0 | AV6: 0 | AW6: 0 | AX6: 0 | AY6: 0 | AZ6: 0 | BA6: 0 | BB6: 0 | BC6: 0 | BD6: 0 | BE6: 0 | BF6: 0 | BG6: 0 | BH6: 0 | BI6: -1 | BJ6: 0 | BK6: 0 | BL6: 0 | BM6: 0 | BN6: 0 | BO6: 0 | BP6: 0 | BQ6: 0 | BR6: 0 | BS6: 0 | BT6: 0 | BU6: 0 | BV6: 0 | BW6: 0 | BX6: 0 | BY6: 0 | BZ6: 0 | CA6: 0 | CB6: 0 | CC6: 0 | CD6: 0
A7: Quarters 3 Match 1 | B7: 2451 | C7: 2481 | D7: 5406 | E7: 3130 | F7: 234 | G7: 1519 | H7: 362 | I7: 324 | J7: 182 | K7: 299 | L7: 25 | M7: 180 | O7: 6 | P7: 0 | Q7: 1 | R7: 0 | S7: 0 | T7: 0 | U7: 0 | V7: 0 | W7: -1 | X7: 0 | Y7: 0 | Z7: 0 | AA7: 0 | AB7: 0 | AC7: 0 | AD7: 0 | AE7: 0 | AF7: 0 | AG7: -1 | AH7: 0 | AI7: 0 | AJ7: 0 | AK7: 0 | AL7: 0 | AM7: 0 | AN7: 0 | AO7: 0 | AP7: 0 | AQ7: 0 | AR7: 0 | AS7: 0 | AT7: 0 | AU7: 1 | AV7: 1 | AW7: 0 | AX7: 0 | AY7: 0 | AZ7: 0 | BA7: 0 | BB7: 0 | BC7: 0 | BD7: 0 | BE7: 0 | BF7: 0 | BG7: 0 | BH7: 0 | BI7: 0 | BJ7: 0 | BK7: 0 | BL7: -1 | BM7: 0 | BN7: 0 | BO7: 0 | BP7: 0 | BQ7: 0 | BR7: 0 | BS7: 0 | BT7: 0 | BU7: 0 | BV7: 0 | BW7: 0 | BX7: 0 | BY7: 0 | BZ7: 0 | CA7: 0 | CB7: =IF(($B7=CB$1)+($C7=CB$1)+($D7=CB$1),1,IF(($E7=CB$1)+($F7=CB$1)+($G7=CB$1),-1,0)) -> 0 | CC7: 0 | CD7: 0
A8: Quarters 3 Match 2 | B8: 2451 | C8: 2481 | D8: 5406 | E8: 3130 | F8: 234 | G8: 1519 | H8: 423 | I8: 352 | J8: 423 | K8: 347 | L8: 5 | M8: 0 | O8: 7 | P8: 0 | Q8: =IF(($B8=Q$1)+($C8=Q$1)+($D8=Q$1),1,IF(($E8=Q$1)+($F8=Q$1)+($G8=Q$1),-1,0)) -> 1 | R8: 0 | S8: 0 | T8: 0 | U8: 0 | V8: 0 | W8: -1 | X8: 0 | Y8: 0 | Z8: 0 | AA8: 0 | AB8: 0 | AC8: 0 | AD8: 0 | AE8: 0 | AF8: 0 | AG8: -1 | AH8: 0 | AI8: 0 | AJ8: 0 | AK8: 0 | AL8: 0 | AM8: 0 | AN8: 0 | AO8: 0 | AP8: 0 | AQ8: 0 | AR8: 0 | AS8: 0 | AT8: 0 | AU8: 1 | AV8: 1 | AW8: 0 | AX8: 0 | AY8: 0 | AZ8: 0 | BA8: 0 | BB8: 0 | BC8: 0 | BD8: 0 | BE8: 0 | BF8: 0 | BG8: 0 | BH8: 0 | BI8: 0 | BJ8: 0 | BK8: 0 | BL8: -1 | BM8: 0 | BN8: 0 | BO8: 0 | BP8: 0 | BQ8: 0 | BR8: 0 | BS8: 0 | BT8: 0 | BU8: 0 | BV8: 0 | BW8: 0 | BX8: 0 | BY8: 0 | BZ8: 0 | CA8: 0 | CB8: 0 | CC8: 0 | CD8: 0
A9: Quarters 4 Match 1 | B9: 2194 | C9: 125 | D9: 3536 | E9: 865 | F9: 494 | G9: 4917 | H9: 243 | I9: 454 | J9: 243 | K9: 454 | L9: 0 | M9: 0 | O9: 8 | P9: 0 | Q9: 0 | R9: 1 | S9: 0 | T9: 0 | U9: -1 | V9: -1 | W9: 0 | X9: 0 | Y9: 1 | Z9: 0 | AA9: 0 | AB9: 0 | AC9: 0 | AD9: 1 | AE9: 0 | AF9: 0 | AG9: 0 | AH9: 0 | AI9: 0 | AJ9: 0 | AK9: 0 | AL9: -1 | AM9: 0 | AN9: 0 | AO9: 0 | AP9: 0 | AQ9: 0 | AR9: 0 | AS9: 0 | AT9: 0 | AU9: 0 | AV9: 0 | AW9: 0 | AX9: 0 | AY9: 0 | AZ9: 0 | BA9: 0 | BB9: 0 | BC9: 0 | BD9: 0 | BE9: 0 | BF9: 0 | BG9: 0 | BH9: 0 | BI9: 0 | BJ9: 0 | BK9: 0 | BL9: 0 | BM9: 0 | BN9: 0 | BO9: 0 | BP9: 0 | BQ9: 0 | BR9: 0 | BS9: 0 | BT9: 0 | BU9: 0 | BV9: 0 | BW9: 0 | BX9: 0 | BY9: 0 | BZ9: 0 | CA9: 0 | CB9: 0 | CC9: 0 | CD9: 0
A10: Quarters 4 Match 2 | B10: 2194 | C10: 125 | D10: 3536 | E10: 865 | F10: 494 | G10: 4917 | H10: 317 | I10: 391 | J10: 292 | K10: 391 | L10: 0 | M10: 25 | O10: 9 | P10: 0 | Q10: 0 | R10: 1 | S10: 0 | T10: 0 | U10: -1 | V10: -1 | W10: 0 | X10: 0 | Y10: 1 | Z10: 0 | AA10: 0 | AB10: 0 | AC10: 0 | AD10: 1 | AE10: 0 | AF10: 0 | AG10: 0 | AH10: 0 | AI10: 0 | AJ10: 0 | AK10: 0 | AL10: -1 | AM10: 0 | AN10: 0 | AO10: 0 | AP10: 0 | AQ10: 0 | AR10: 0 | AS10: 0 | AT10: 0 | AU10: 0 | AV10: 0 | AW10: 0 | AX10: 0 | AY10: 0 | AZ10: 0 | BA10: 0 | BB10: 0 | BC10: 0 | BD10: 0 | BE10: 0 | BF10: 0 | BG10: 0 | BH10: 0 | BI10: 0 | BJ10: 0 | BK10: 0 | BL10: 0 | BM10: 0 | BN10: 0 | BO10: 0 | BP10: 0 | BQ10: 0 | BR10: 0 | BS10: 0 | BT10: 0 | BU10: 0 | BV10: 0 | BW10: 0 | BX10: 0 | BY10: 0 | BZ10: 0 | CA10: 0 | CB10: 0 | CC10: 0 | CD10: 0
A11: Semis 1 Match 1 | B11: 4028 | C11: 1391 | D11: 56 | E11: 772 | F11: 177 | G11: 176 | H11: 324 | I11: 402 | J11: 299 | K11: 402 | L11: 0 | M11: 25 | O11: 10 | P11: 1 | Q11: 0 | R11: 0 | S11: -1 | T11: 0 | U11: 0 | V11: 0 | W11: 0 | X11: 0 | Y11: 0 | Z11: 1 | AA11: 1 | AB11: 0 | AC11: -1 | AD11: 0 | AE11: 0 | AF11: -1 | AG11: 0 | AH11: 0 | AI11: 0 | AJ11: 0 | AK11: 0 | AL11: 0 | AM11: 0 | AN11: 0 | AO11: 0 | AP11: 0 | AQ11: 0 | AR11: 0 | AS11: 0 | AT11: 0 | AU11: 0 | AV11: 0 | AW11: 0 | AX11: 0 | AY11: 0 | AZ11: 0 | BA11: 0 | BB11: 0 | BC11: 0 | BD11: 0 | BE11: 0 | BF11: 0 | BG11: 0 | BH11: 0 | BI11: 0 | BJ11: 0 | BK11: 0 | BL11: 0 | BM11: 0 | BN11: 0 | BO11: 0 | BP11: 0 | BQ11: 0 | BR11: 0 | BS11: 0 | BT11: 0 | BU11: 0 | BV11: 0 | BW11: 0 | BX11: 0 | BY11: 0 | BZ11: 0 | CA11: 0 | CB11: =IF(($B11=CB$1)+($C11=CB$1)+($D11=CB$1),1,IF(($E11=CB$1)+($F11=CB$1)+($G11=CB$1),-1,0)) -> 0 | CC11: 0 | CD11: 0
A12: Semis 1 Match 2 | B12: 4028 | C12: 56 | D12: 365 | E12: 772 | F12: 177 | G12: 176 | H12: 383 | I12: 335 | J12: 348 | K12: 310 | L12: 25 | M12: 35 | O12: 11 | P12: 1 | Q12: =IF(($B12=Q$1)+($C12=Q$1)+($D12=Q$1),1,IF(($E12=Q$1)+($F12=Q$1)+($G12=Q$1),-1,0)) -> 0 | R12: 0 | S12: -1 | T12: 0 | U12: 0 | V12: 0 | W12: 0 | X12: 0 | Y12: 0 | Z12: 1 | AA12: 0 | AB12: 0 | AC12: -1 | AD12: 0 | AE12: 0 | AF12: -1 | AG12: 0 | AH12: 0 | AI12: 0 | AJ12: 0 | AK12: 0 | AL12: 0 | AM12: 0 | AN12: 0 | AO12: 0 | AP12: 0 | AQ12: 0 | AR12: 0 | AS12: 0 | AT12: 0 | AU12: 0 | AV12: 0 | AW12: 0 | AX12: 0 | AY12: 0 | AZ12: 0 | BA12: 1 | BB12: 0 | BC12: 0 | BD12: 0 | BE12: 0 | BF12: 0 | BG12: 0 | BH12: 0 | BI12: 0 | BJ12: 0 | BK12: 0 | BL12: 0 | BM12: 0 | BN12: 0 | BO12: 0 | BP12: 0 | BQ12: 0 | BR12: 0 | BS12: 0 | BT12: 0 | BU12: 0 | BV12: 0 | BW12: 0 | BX12: 0 | BY12: 0 | BZ12: 0 | CA12: 0 | CB12: 0 | CC12: 0 | CD12: 0
A13: Semis 1 Match 3 | B13: 4028 | C13: 56 | D13: 365 | E13: 772 | F13: 177 | G13: 176 | H13: 392 | I13: 326 | J13: 357 | K13: 321 | L13: 5 | M13: 35 | O13: 12 | P13: 1 | Q13: 0 | R13: 0 | S13: -1 | T13: 0 | U13: 0 | V13: 0 | W13: 0 | X13: 0 | Y13: 0 | Z13: 1 | AA13: 0 | AB13: 0 | AC13: -1 | AD13: 0 | AE13: 0 | AF13: -1 | AG13: 0 | AH13: 0 | AI13: 0 | AJ13: 0 | AK13: 0 | AL13: 0 | AM13: 0 | AN13: 0 | AO13: 0 | AP13: 0 | AQ13: 0 | AR13: 0 | AS13: 0 | AT13: 0 | AU13: 0 | AV13: 0 | AW13: 0 | AX13: 0 | AY13: 0 | AZ13: 0 | BA13: 1 | BB13: 0 | BC13: 0 | BD13: 0 | BE13: 0 | BF13: 0 | BG13: 0 | BH13: 0 | BI13: 0 | BJ13: 0 | BK13: 0 | BL13: 0 | BM13: 0 | BN13: 0 | BO13: 0 | BP13: 0 | BQ13: 0 | BR13: 0 | BS13: 0 | BT13: 0 | BU13: 0 | BV13: 0 | BW13: 0 | BX13: 0 | BY13: 0 | BZ13: 0 | CA13: 0 | CB13: 0 | CC13: 0 | CD13: 0
A14: Semis 2 Match 1 | B14: 2451 | C14: 2481 | D14: 5406 | E14: 865 | F14: 494 | G14: 4917 | H14: 393 | I14: 394 | J14: 353 | K14: 364 | L14: 30 | M14: 40 | O14: 13 | P14: 0 | Q14: 1 | R14: 0 | S14: 0 | T14: 0 | U14: -1 | V14: -1 | W14: 0 | X14: 0 | Y14: 0 | Z14: 0 | AA14: 0 | AB14: 0 | AC14: 0 | AD14: 0 | AE14: 0 | AF14: 0 | AG14: 0 | AH14: 0 | AI14: 0 | AJ14: 0 | AK14: 0 | AL14: -1 | AM14: 0 | AN14: 0 | AO14: 0 | AP14: 0 | AQ14: 0 | AR14: 0 | AS14: 0 | AT14: 0 | AU14: 1 | AV14: 1 | AW14: 0 | AX14: 0 | AY14: 0 | AZ14: 0 | BA14: 0 | BB14: 0 | BC14: 0 | BD14: 0 | BE14: 0 | BF14: 0 | BG14: 0 | BH14: 0 | BI14: 0 | BJ14: 0 | BK14: 0 | BL14: 0 | BM14: 0 | BN14: 0 | BO14: 0 | BP14: 0 | BQ14: 0 | BR14: 0 | BS14: 0 | BT14: 0 | BU14: 0 | BV14: 0 | BW14: 0 | BX14: 0 | BY14: 0 | BZ14: 0 | CA14: 0 | CB14: 0 | CC14: 0 | CD14: 0
A15: Semis 2 Match 2 | B15: 2451 | C15: 2481 | D15: 5406 | E15: 865 | F15: 494 | G15: 4917 | H15: 447 | I15: 290 | J15: 417 | K15: 285 | L15: 5 | M15: 30 | O15: 14 | P15: 0 | Q15: 1 | R15: 0 | S15: 0 | T15: 0 | U15: -1 | V15: -1 | W15: 0 | X15: 0 | Y15: 0 | Z15: 0 | AA15: 0 | AB15: 0 | AC15: 0 | AD15: 0 | AE15: 0 | AF15: 0 | AG15: 0 | AH15: 0 | AI15: 0 | AJ15: 0 | AK15: 0 | AL15: -1 | AM15: 0 | AN15: 0 | AO15: 0 | AP15: 0 | AQ15: 0 | AR15: 0 | AS15: 0 | AT15: 0 | AU15: 1 | AV15: 1 | AW15: 0 | AX15: 0 | AY15: 0 | AZ15: 0 | BA15: 0 | BB15: 0 | BC15: 0 | BD15: 0 | BE15: 0 | BF15: 0 | BG15: 0 | BH15: 0 | BI15: 0 | BJ15: 0 | BK15: 0 | BL15: 0 | BM15: 0 | BN15: 0 | BO15: 0 | BP15: 0 | BQ15: 0 | BR15: 0 | BS15: 0 | BT15: 0 | BU15: 0 | BV15: 0 | BW15: 0 | BX15: 0 | BY15: 0 | BZ15: 0 | CA15: 0 | CB15: =IF(($B15=CB$1)+($C15=CB$1)+($D15=CB$1),1,IF(($E15=CB$1)+($F15=CB$1)+($G15=CB$1),-1,0)) -> 0 | CC15: 0 | CD15: 0
A16: Semis 2 Match 3 | B16: 2451 | C16: 2481 | D16: 5406 | E16: 865 | F16: 494 | G16: 4917 | H16: 355 | I16: 366 | J16: 330 | K16: 341 | L16: 25 | M16: 25 | O16: 15 | P16: 0 | Q16: =IF(($B16=Q$1)+($C16=Q$1)+($D16=Q$1),1,IF(($E16=Q$1)+($F16=Q$1)+($G16=Q$1),-1,0)) -> 1 | R16: 0 | S16: 0 | T16: 0 | U16: -1 | V16: -1 | W16: 0 | X16: 0 | Y16: 0 | Z16: 0 | AA16: 0 | AB16: 0 | AC16: 0 | AD16: 0 | AE16: 0 | AF16: 0 | AG16: 0 | AH16: 0 | AI16: 0 | AJ16: 0 | AK16: 0 | AL16: -1 | AM16: 0 | AN16: 0 | AO16: 0 | AP16: 0 | AQ16: 0 | AR16: 0 | AS16: 0 | AT16: 0 | AU16: 1 | AV16: 1 | AW16: 0 | AX16: 0 | AY16: 0 | AZ16: 0 | BA16: 0 | BB16: 0 | BC16: 0 | BD16: 0 | BE16: 0 | BF16: 0 | BG16: 0 | BH16: 0 | BI16: 0 | BJ16: 0 | BK16: 0 | BL16: 0 | BM16: 0 | BN16: 0 | BO16: 0 | BP16: 0 | BQ16: 0 | BR16: 0 | BS16: 0 | BT16: 0 | BU16: 0 | BV16: 0 | BW16: 0 | BX16: 0 | BY16: 0 | BZ16: 0 | CA16: 0 | CB16: 0 | CC16: 0 | CD16: 0
A17: Finals 1 | B17: 4028 | C17: 56 | D17: 365 | E17: 865 | F17: 494 | G17: 4917 | H17: 444 | I17: 341 | J17: 434 | K17: 291 | L17: 50 | M17: 10 | O17: 16 | P17: 1 | Q17: 0 | R17: 0 | S17: 0 | T17: 0 | U17: -1 | V17: -1 | W17: 0 | X17: 0 | Y17: 0 | Z17: 1 | AA17: 0 | AB17: 0 | AC17: 0 | AD17: 0 | AE17: 0 | AF17: 0 | AG17: 0 | AH17: 0 | AI17: 0 | AJ17: 0 | AK17: 0 | AL17: -1 | AM17: 0 | AN17: 0 | AO17: 0 | AP17: 0 | AQ17: 0 | AR17: 0 | AS17: 0 | AT17: 0 | AU17: 0 | AV17: 0 | AW17: 0 | AX17: 0 | AY17: 0 | AZ17: 0 | BA17: 1 | BB17: 0 | BC17: 0 | BD17: 0 | BE17: 0 | BF17: 0 | BG17: 0 | BH17: 0 | BI17: 0 | BJ17: 0 | BK17: 0 | BL17: 0 | BM17: 0 | BN17: 0 | BO17: 0 | BP17: 0 | BQ17: 0 | BR17: 0 | BS17: 0 | BT17: 0 | BU17: 0 | BV17: 0 | BW17: 0 | BX17: 0 | BY17: 0 | BZ17: 0 | CA17: 0 | CB17: 0 | CC17: 0 | CD17: 0
A18: Finals 2 | B18: 4028 | C18: 56 | D18: 365 | E18: 865 | F18: 494 | G18: 4917 | H18: 307 | I18: 377 | J18: 302 | K18: 347 | L18: 30 | M18: 5 | O18: 17 | P18: 1 | Q18: 0 | R18: 0 | S18: 0 | T18: 0 | U18: -1 | V18: -1 | W18: 0 | X18: 0 | Y18: 0 | Z18: 1 | AA18: 0 | AB18: 0 | AC18: 0 | AD18: 0 | AE18: 0 | AF18: 0 | AG18: 0 | AH18: 0 | AI18: 0 | AJ18: 0 | AK18: 0 | AL18: -1 | AM18: 0 | AN18: 0 | AO18: 0 | AP18: 0 | AQ18: 0 | AR18: 0 | AS18: 0 | AT18: 0 | AU18: 0 | AV18: 0 | AW18: 0 | AX18: 0 | AY18: 0 | AZ18: 0 | BA18: 1 | BB18: 0 | BC18: 0 | BD18: 0 | BE18: 0 | BF18: 0 | BG18: 0 | BH18: 0 | BI18: 0 | BJ18: 0 | BK18: 0 | BL18: 0 | BM18: 0 | BN18: 0 | BO18: 0 | BP18: 0 | BQ18: 0 | BR18: 0 | BS18: 0 | BT18: 0 | BU18: 0 | BV18: 0 | BW18: 0 | BX18: 0 | BY18: 0 | BZ18: 0 | CA18: 0 | CB18: 0 | CC18: 0 | CD18: 0
A19: Finals 3 | B19: 4028 | C19: 56 | D19: 365 | E19: 865 | F19: 494 | G19: 4917 | H19: 348 | I19: 413 | J19: 343 | K19: 408 | L19: 5 | M19: 5 | O19: 18 | P19: 1 | Q19: 0 | R19: 0 | S19: 0 | T19: 0 | U19: -1 | V19: -1 | W19: 0 | X19: 0 | Y19: 0 | Z19: 1 | AA19: 0 | AB19: 0 | AC19: 0 | AD19: 0 | AE19: 0 | AF19: 0 | AG19: 0 | AH19: 0 | AI19: 0 | AJ19: 0 | AK19: 0 | AL19: -1 | AM19: 0 | AN19: 0 | AO19: 0 | AP19: 0 | AQ19: 0 | AR19: 0 | AS19: 0 | AT19: 0 | AU19: 0 | AV19: 0 | AW19: 0 | AX19: 0 | AY19: 0 | AZ19: 0 | BA19: 1 | BB19: 0 | BC19: 0 | BD19: 0 | BE19: 0 | BF19: 0 | BG19: 0 | BH19: 0 | BI19: 0 | BJ19: 0 | BK19: 0 | BL19: 0 | BM19: 0 | BN19: 0 | BO19: 0 | BP19: 0 | BQ19: 0 | BR19: 0 | BS19: 0 | BT19: 0 | BU19: 0 | BV19: 0 | BW19: 0 | BX19: 0 | BY19: 0 | BZ19: 0 | CA19: 0 | CB19: =IF(($B19=CB$1)+($C19=CB$1)+($D19=CB$1),1,IF(($E19=CB$1)+($F19=CB$1)+($G19=CB$1),-1,0)) -> 0 | CC19: 0 | CD19: 0

Sheet Tesla
A1: Match | B1: Red 1 ID | C1: Red 2 ID | D1: Red 3 ID | E1: Blue 1 ID | F1: Blue 2 ID | G1: Blue 3ID | H1: Red | I1: Blue | J1: Radj | K1: Badj | L1: Bfoul | M1: Rfoul | O1: Match | P1: 2056 | Q1: 1241 | R1: 3641 | S1: 2614 | T1: 340 | U1: 3546 | V1: 3098 | W1: 1712 | X1: 314 | Y1: 291 | Z1: 3667 | AA1: 2590 | AB1: 4618 | AC1: 5567 | AD1: 5172 | AE1: 319 | AF1: 3770 | AG1: 5114 | AH1: 597 | AI1: 2168 | AJ1: 5675 | AK1: 6090 | AL1: 6077 | AM1: 7226 | AN1: 2869 | AO1: 85 | AP1: 4678 | AQ1: 1792 | AR1: 5528 | AS1: 533 | AT1: 708 | AU1: 1676 | AV1: 1506 | AW1: 6802 | AX1: 3623 | AY1: 6618 | AZ1: 5980 | BA1: 1729 | BB1: 2474 | BC1: 2609 | BD1: 1073 | BE1: 4472 | BF1: 1720 | BG1: 573 | BH1: 525 | BI1: 4531 | BJ1: 238 | BK1: 6574 | BL1: 3038 | BM1: 3197 | BN1: 1310 | BO1: 1360 | BP1: 4039 | BQ1: 2169 | BR1: 527 | BS1: 3550 | BT1: 6911 | BU1: 5090 | BV1: 321 | BW1: 4680 | BX1: 4810 | BY1: 743 | BZ1: 4939 | CA1: 2500 | CB1: 4391 | CC1: 3258 | CD1: 7068
A2: Quarters 1 Match 1 | B2: 2869 | C2: 2056 | D2: 1241 | E2: 291 | F2: 1360 | G2: 5675 | H2: 394 | I2: 290 | J2: =H2-M2 -> 394 | K2: =I2-L2 -> 260 | L2: 30 | M2: 0 | O2: 1 | P2: =IF(($B2=P$1)+($C2=P$1)+($D2=P$1),1,IF(($E2=P$1)+($F2=P$1)+($G2=P$1),-1,0)) -> 1 | Q2: =IF(($B2=Q$1)+($C2=Q$1)+($D2=Q$1),1,IF(($E2=Q$1)+($F2=Q$1)+($G2=Q$1),-1,0)) -> 1 | R2: 0 | S2: 0 | T2: 0 | U2: 0 | V2: 0 | W2: 0 | X2: 0 | Y2: -1 | Z2: 0 | AA2: 0 | AB2: 0 | AC2: 0 | AD2: 0 | AE2: 0 | AF2: 0 | AG2: 0 | AH2: 0 | AI2: 0 | AJ2: -1 | AK2: 0 | AL2: 0 | AM2: 0 | AN2: 1 | AO2: 0 | AP2: 0 | AQ2: 0 | AR2: 0 | AS2: 0 | AT2: 0 | AU2: 0 | AV2: 0 | AW2: 0 | AX2: 0 | AY2: 0 | AZ2: 0 | BA2: 0 | BB2: 0 | BC2: 0 | BD2: 0 | BE2: 0 | BF2: 0 | BG2: 0 | BH2: 0 | BI2: 0 | BJ2: 0 | BK2: 0 | BL2: 0 | BM2: 0 | BN2: 0 | BO2: -1 | BP2: 0 | BQ2: 0 | BR2: 0 | BS2: 0 | BT2: 0 | BU2: 0 | BV2: 0 | BW2: 0 | BX2: 0 | BY2: 0 | BZ2: 0 | CA2: 0 | CB2: 0 | CC2: =IF(($B2=CC$1)+($C2=CC$1)+($D2=CC$1),1,IF(($E2=CC$1)+($F2=CC$1)+($G2=CC$1),-1,0)) -> 0 | CD2: 0
A3: Quarters 1 Match 2 | B3: 2869 | C3: 2056 | D3: 1241 | E3: 291 | F3: 1360 | G3: 5675 | H3: 447 | I3: 0 | J3: =H3-M3 -> 422 | K3: =I3-L3 -> -10 | L3: 10 | M3: 25 | O3: 2 | P3: =IF(($B3=P$1)+($C3=P$1)+($D3=P$1),1,IF(($E3=P$1)+($F3=P$1)+($G3=P$1),-1,0)) -> 1 | Q3: 1 | R3: 0 | S3: 0 | T3: 0 | U3: 0 | V3: 0 | W3: 0 | X3: 0 | Y3: -1 | Z3: 0 | AA3: 0 | AB3: 0 | AC3: 0 | AD3: 0 | AE3: 0 | AF3: 0 | AG3: 0 | AH3: 0 | AI3: 0 | AJ3: -1 | AK3: 0 | AL3: 0 | AM3: 0 | AN3: 1 | AO3: 0 | AP3: 0 | AQ3: 0 | AR3: 0 | AS3: 0 | AT3: 0 | AU3: 0 | AV3: 0 | AW3: 0 | AX3: 0 | AY3: 0 | AZ3: 0 | BA3: 0 | BB3: 0 | BC3: 0 | BD3: 0 | BE3: 0 | BF3: 0 | BG3: 0 | BH3: 0 | BI3: 0 | BJ3: 0 | BK3: 0 | BL3: 0 | BM3: 0 | BN3: 0 | BO3: -1 | BP3: 0 | BQ3: 0 | BR3: 0 | BS3: 0 | BT3: 0 | BU3: 0 | BV3: 0 | BW3: 0 | BX3: 0 | BY3: 0 | BZ3: 0 | CA3: 0 | CB3: 0 | CC3: 0 | CD3: 0
A4: Quarters 2 Match 1 | B4: 238 | C4: 319 | D4: 340 | E4: 2168 | F4: 3546 | G4: 85 | H4: 430 | I4: 330 | J4: 430 | K4: 255 | L4: 75 | M4: 0 | O4: 3 | P4: 0 | Q4: =IF(($B4=Q$1)+($C4=Q$1)+($D4=Q$1),1,IF(($E4=Q$1)+($F4=Q$1)+($G4=Q$1),-1,0)) -> 0 | R4: 0 | S4: 0 | T4: 1 | U4: -1 | V4: 0 | W4: 0 | X4: 0 | Y4: 0 | Z4: 0 | AA4: 0 | AB4: 0 | AC4: 0 | AD4: 0 | AE4: 1 | AF4: 0 | AG4: 0 | AH4: 0 | AI4: -1 | AJ4: 0 | AK4: 0 | AL4: 0 | AM4: 0 | AN4: 0 | AO4: -1 | AP4: 0 | AQ4: 0 | AR4: 0 | AS4: 0 | AT4: 0 | AU4: 0 | AV4: 0 | AW4: 0 | AX4: 0 | AY4: 0 | AZ4: 0 | BA4: 0 | BB4: 0 | BC4: 0 | BD4: 0 | BE4: 0 | BF4: 0 | BG4: 0 | BH4: 0 | BI4: 0 | BJ4: 1 | BK4: 0 | BL4: 0 | BM4: 0 | BN4: 0 | BO4: 0 | BP4: 0 | BQ4: 0 | BR4: 0 | BS4: 0 | BT4: 0 | BU4: 0 | BV4: 0 | BW4: 0 | BX4: 0 | BY4: 0 | BZ4: 0 | CA4: 0 | CB4: 0 | CC4: 0 | CD4: 0
A5: Quarters 2 Match 2 | B5: 238 | C5: 319 | D5: 340 | E5: 3546 | F5: 2474 | G5: 2168 | H5: 345 | I5: 505 | J5: 310 | K5: 480 | L5: 25 | M5: 35 | O5: 4 | P5: 0 | Q5: 0 | R5: 0 | S5: 0 | T5: 1 | U5: -1 | V5: 0 | W5: 0 | X5: 0 | Y5: 0 | Z5: 0 | AA5: 0 | AB5: 0 | AC5: 0 | AD5: 0 | AE5: 1 | AF5: 0 | AG5: 0 | AH5: 0 | AI5: -1 | AJ5: 0 | AK5: 0 | AL5: 0 | AM5: 0 | AN5: 0 | AO5: 0 | AP5: 0 | AQ5: 0 | AR5: 0 | AS5: 0 | AT5: 0 | AU5: 0 | AV5: 0 | AW5: 0 | AX5: 0 | AY5: 0 | AZ5: 0 | BA5: 0 | BB5: -1 | BC5: 0 | BD5: 0 | BE5: 0 | BF5: 0 | BG5: 0 | BH5: 0 | BI5: 0 | BJ5: 1 | BK5: 0 | BL5: 0 | BM5: 0 | BN5: 0 | BO5: 0 | BP5: 0 | BQ5: 0 | BR5: 0 | BS5: 0 | BT5: 0 | BU5: 0 | BV5: 0 | BW5: 0 | BX5: 0 | BY5: 0 | BZ5: 0 | CA5: 0 | CB5: 0 | CC5: 0 | CD5: 0
A6: Quarters 2 Match 3 | B6: 238 | C6: 319 | D6: 340 | E6: 3546 | F6: 2474 | G6: 2168 | H6: 325 | I6: 322 | J6: 310 | K6: 272 | L6: 50 | M6: 15 | O6: 5 | P6: 0 | Q6: 0 | R6: 0 | S6: 0 | T6: 1 | U6: -1 | V6: 0 | W6: 0 | X6: 0 | Y6: 0 | Z6: 0 | AA6: 0 | AB6: 0 | AC6: 0 | AD6: 0 | AE6: 1 | AF6: 0 | AG6: 0 | AH6: 0 | AI6: -1 | AJ6: 0 | AK6: 0 | AL6: 0 | AM6: 0 | AN6: 0 | AO6: 0 | AP6: 0 | AQ6: 0 | AR6: 0 | AS6: 0 | AT6: 0 | AU6: 0 | AV6: 0 | AW6: 0 | AX6: 0 | AY6: 0 | AZ6: 0 | BA6: 0 | BB6: -1 | BC6: 0 | BD6: 0 | BE6: 0 | BF6: 0 | BG6: 0 | BH6: 0 | BI6: 0 | BJ6: 1 | BK6: 0 | BL6: 0 | BM6: 0 | BN6: 0 | BO6: 0 | BP6: 0 | BQ6: 0 | BR6: 0 | BS6: 0 | BT6: 0 | BU6: 0 | BV6: 0 | BW6: 0 | BX6: 0 | BY6: 0 | BZ6: 0 | CA6: 0 | CB6: 0 | CC6: 0 | CD6: 0
A7: Quarters 3 Match 1 | B7: 3098 | C7: 525 | D7: 3641 | E7: 314 | F7: 4678 | G7: 5114 | H7: 284 | I7: 361 | J7: 259 | K7: 266 | L7: 95 | M7: 25 | O7: 6 | P7: 0 | Q7: 0 | R7: 1 | S7: 0 | T7: 0 | U7: 0 | V7: 1 | W7: 0 | X7: -1 | Y7: 0 | Z7: 0 | AA7: 0 | AB7: 0 | AC7: 0 | AD7: 0 | AE7: 0 | AF7: 0 | AG7: -1 | AH7: 0 | AI7: 0 | AJ7: 0 | AK7: 0 | AL7: 0 | AM7: 0 | AN7: 0 | AO7: 0 | AP7: -1 | AQ7: 0 | AR7: 0 | AS7: 0 | AT7: 0 | AU7: 0 | AV7: 0 | AW7: 0 | AX7: 0 | AY7: 0 | AZ7: 0 | BA7: 0 | BB7: 0 | BC7: 0 | BD7: 0 | BE7: 0 | BF7: 0 | BG7: 0 | BH7: 1 | BI7: 0 | BJ7: 0 | BK7: 0 | BL7: 0 | BM7: 0 | BN7: 0 | BO7: 0 | BP7: 0 | BQ7: 0 | BR7: 0 | BS7: 0 | BT7: 0 | BU7: 0 | BV7: 0 | BW7: 0 | BX7: 0 | BY7: 0 | BZ7: 0 | CA7: 0 | CB7: =IF(($B7=CB$1)+($C7=CB$1)+($D7=CB$1),1,IF(($E7=CB$1)+($F7=CB$1)+($G7=CB$1),-1,0)) -> 0 | CC7: 0 | CD7: 0
A8: Quarters 3 Match 2 | B8: 3098 | C8: 525 | D8: 3641 | E8: 314 | F8: 4678 | G8: 5114 | H8: 338 | I8: 172 | J8: 338 | K8: 167 | L8: 5 | M8: 0 | O8: 7 | P8: 0 | Q8: =IF(($B8=Q$1)+($C8=Q$1)+($D8=Q$1),1,IF(($E8=Q$1)+($F8=Q$1)+($G8=Q$1),-1,0)) -> 0 | R8: 1 | S8: 0 | T8: 0 | U8: 0 | V8: 1 | W8: 0 | X8: -1 | Y8: 0 | Z8: 0 | AA8: 0 | AB8: 0 | AC8: 0 | AD8: 0 | AE8: 0 | AF8: 0 | AG8: -1 | AH8: 0 | AI8: 0 | AJ8: 0 | AK8: 0 | AL8: 0 | AM8: 0 | AN8: 0 | AO8: 0 | AP8: -1 | AQ8: 0 | AR8: 0 | AS8: 0 | AT8: 0 | AU8: 0 | AV8: 0 | AW8: 0 | AX8: 0 | AY8: 0 | AZ8: 0 | BA8: 0 | BB8: 0 | BC8: 0 | BD8: 0 | BE8: 0 | BF8: 0 | BG8: 0 | BH8: 1 | BI8: 0 | BJ8: 0 | BK8: 0 | BL8: 0 | BM8: 0 | BN8: 0 | BO8: 0 | BP8: 0 | BQ8: 0 | BR8: 0 | BS8: 0 | BT8: 0 | BU8: 0 | BV8: 0 | BW8: 0 | BX8: 0 | BY8: 0 | BZ8: 0 | CA8: 0 | CB8: 0 | CC8: 0 | CD8: 0
A9: Quarters 3 Match 3 | B9: 3098 | C9: 525 | D9: 3641 | E9: 314 | F9: 4678 | G9: 3667 | H9: 320 | I9: 285 | J9: 295 | K9: 225 | L9: 60 | M9: 25 | O9: 8 | P9: 0 | Q9: 0 | R9: 1 | S9: 0 | T9: 0 | U9: 0 | V9: 1 | W9: 0 | X9: -1 | Y9: 0 | Z9: -1 | AA9: 0 | AB9: 0 | AC9: 0 | AD9: 0 | AE9: 0 | AF9: 0 | AG9: 0 | AH9: 0 | AI9: 0 | AJ9: 0 | AK9: 0 | AL9: 0 | AM9: 0 | AN9: 0 | AO9: 0 | AP9: -1 | AQ9: 0 | AR9: 0 | AS9: 0 | AT9: 0 | AU9: 0 | AV9: 0 | AW9: 0 | AX9: 0 | AY9: 0 | AZ9: 0 | BA9: 0 | BB9: 0 | BC9: 0 | BD9: 0 | BE9: 0 | BF9: 0 | BG9: 0 | BH9: 1 | BI9: 0 | BJ9: 0 | BK9: 0 | BL9: 0 | BM9: 0 | BN9: 0 | BO9: 0 | BP9: 0 | BQ9: 0 | BR9: 0 | BS9: 0 | BT9: 0 | BU9: 0 | BV9: 0 | BW9: 0 | BX9: 0 | BY9: 0 | BZ9: 0 | CA9: 0 | CB9: 0 | CC9: 0 | CD9: 0
A10: Quarters 4 Match 1 | B10: 2590 | C10: 2614 | D10: 708 | E10: 5172 | F10: 5567 | G10: 1712 | H10: 466 | I10: 358 | J10: 461 | K10: 328 | L10: 30 | M10: 5 | O10: 9 | P10: 0 | Q10: 0 | R10: 0 | S10: 1 | T10: 0 | U10: 0 | V10: 0 | W10: -1 | X10: 0 | Y10: 0 | Z10: 0 | AA10: 1 | AB10: 0 | AC10: -1 | AD10: -1 | AE10: 0 | AF10: 0 | AG10: 0 | AH10: 0 | AI10: 0 | AJ10: 0 | AK10: 0 | AL10: 0 | AM10: 0 | AN10: 0 | AO10: 0 | AP10: 0 | AQ10: 0 | AR10: 0 | AS10: 0 | AT10: 1 | AU10: 0 | AV10: 0 | AW10: 0 | AX10: 0 | AY10: 0 | AZ10: 0 | BA10: 0 | BB10: 0 | BC10: 0 | BD10: 0 | BE10: 0 | BF10: 0 | BG10: 0 | BH10: 0 | BI10: 0 | BJ10: 0 | BK10: 0 | BL10: 0 | BM10: 0 | BN10: 0 | BO10: 0 | BP10: 0 | BQ10: 0 | BR10: 0 | BS10: 0 | BT10: 0 | BU10: 0 | BV10: 0 | BW10: 0 | BX10: 0 | BY10: 0 | BZ10: 0 | CA10: 0 | CB10: 0 | CC10: 0 | CD10: 0
A11: Quarters 4 Match 2 | B11: 2590 | C11: 2614 | D11: 708 | E11: 5172 | F11: 5567 | G11: 1712 | H11: 429 | I11: 337 | J11: 429 | K11: 327 | L11: 10 | M11: 0 | O11: 10 | P11: 0 | Q11: 0 | R11: 0 | S11: 1 | T11: 0 | U11: 0 | V11: 0 | W11: -1 | X11: 0 | Y11: 0 | Z11: 0 | AA11: 1 | AB11: 0 | AC11: -1 | AD11: -1 | AE11: 0 | AF11: 0 | AG11: 0 | AH11: 0 | AI11: 0 | AJ11: 0 | AK11: 0 | AL11: 0 | AM11: 0 | AN11: 0 | AO11: 0 | AP11: 0 | AQ11: 0 | AR11: 0 | AS11: 0 | AT11: 1 | AU11: 0 | AV11: 0 | AW11: 0 | AX11: 0 | AY11: 0 | AZ11: 0 | BA11: 0 | BB11: 0 | BC11: 0 | BD11: 0 | BE11: 0 | BF11: 0 | BG11: 0 | BH11: 0 | BI11: 0 | BJ11: 0 | BK11: 0 | BL11: 0 | BM11: 0 | BN11: 0 | BO11: 0 | BP11: 0 | BQ11: 0 | BR11: 0 | BS11: 0 | BT11: 0 | BU11: 0 | BV11: 0 | BW11: 0 | BX11: 0 | BY11: 0 | BZ11: 0 | CA11: 0 | CB11: =IF(($B11=CB$1)+($C11=CB$1)+($D11=CB$1),1,IF(($E11=CB$1)+($F11=CB$1)+($G11=CB$1),-1,0)) -> 0 | CC11: 0 | CD11: 0
A12: Semis 1 Match 1 | B12: 2869 | C12: 2056 | D12: 1241 | E12: 238 | F12: 319 | G12: 340 | H12: 425 | I12: 336 | J12: 415 | K12: 331 | L12: 5 | M12: 10 | O12: 11 | P12: 1 | Q12: =IF(($B12=Q$1)+($C12=Q$1)+($D12=Q$1),1,IF(($E12=Q$1)+($F12=Q$1)+($G12=Q$1),-1,0)) -> 1 | R12: 0 | S12: 0 | T12: -1 | U12: 0 | V12: 0 | W12: 0 | X12: 0 | Y12: 0 | Z12: 0 | AA12: 0 | AB12: 0 | AC12: 0 | AD12: 0 | AE12: -1 | AF12: 0 | AG12: 0 | AH12: 0 | AI12: 0 | AJ12: 0 | AK12: 0 | AL12: 0 | AM12: 0 | AN12: 1 | AO12: 0 | AP12: 0 | AQ12: 0 | AR12: 0 | AS12: 0 | AT12: 0 | AU12: 0 | AV12: 0 | AW12: 0 | AX12: 0 | AY12: 0 | AZ12: 0 | BA12: 0 | BB12: 0 | BC12: 0 | BD12: 0 | BE12: 0 | BF12: 0 | BG12: 0 | BH12: 0 | BI12: 0 | BJ12: -1 | BK12: 0 | BL12: 0 | BM12: 0 | BN12: 0 | BO12: 0 | BP12: 0 | BQ12: 0 | BR12: 0 | BS12: 0 | BT12: 0 | BU12: 0 | BV12: 0 | BW12: 0 | BX12: 0 | BY12: 0 | BZ12: 0 | CA12: 0 | CB12: 0 | CC12: 0 | CD12: 0
A13: Semis 1 Match 2 | B13: 2869 | C13: 2056 | D13: 1241 | E13: 238 | F13: 319 | G13: 340 | H13: 520 | I13: 112 | J13: 520 | K13: 97 | L13: 15 | M13: 0 | O13: 12 | P13: 1 | Q13: 1 | R13: 0 | S13: 0 | T13: -1 | U13: 0 | V13: 0 | W13: 0 | X13: 0 | Y13: 0 | Z13: 0 | AA13: 0 | AB13: 0 | AC13: 0 | AD13: 0 | AE13: -1 | AF13: 0 | AG13: 0 | AH13: 0 | AI13: 0 | AJ13: 0 | AK13: 0 | AL13: 0 | AM13: 0 | AN13: 1 | AO13: 0 | AP13: 0 | AQ13: 0 | AR13: 0 | AS13: 0 | AT13: 0 | AU13: 0 | AV13: 0 | AW13: 0 | AX13: 0 | AY13: 0 | AZ13: 0 | BA13: 0 | BB13: 0 | BC13: 0 | BD13: 0 | BE13: 0 | BF13: 0 | BG13: 0 | BH13: 0 | BI13: 0 | BJ13: -1 | BK13: 0 | BL13: 0 | BM13: 0 | BN13: 0 | BO13: 0 | BP13: 0 | BQ13: 0 | BR13: 0 | BS13: 0 | BT13: 0 | BU13: 0 | BV13: 0 | BW13: 0 | BX13: 0 | BY13: 0 | BZ13: 0 | CA13: 0 | CB13: 0 | CC13: 0 | CD13: 0
A14: Semis 2 Match 1 | B14: 525 | C14: 4618 | D14: 3641 | E14: 2590 | F14: 2614 | G14: 708 | H14: 377 | I14: 394 | J14: 337 | K14: 394 | L14: 0 | M14: 40 | O14: 13 | P14: 0 | Q14: 0 | R14: 1 | S14: -1 | T14: 0 | U14: 0 | V14: 0 | W14: 0 | X14: 0 | Y14: 0 | Z14: 0 | AA14: -1 | AB14: 1 | AC14: 0 | AD14: 0 | AE14: 0 | AF14: 0 | AG14: 0 | AH14: 0 | AI14: 0 | AJ14: 0 | AK14: 0 | AL14: 0 | AM14: 0 | AN14: 0 | AO14: 0 | AP14: 0 | AQ14: 0 | AR14: 0 | AS14: 0 | AT14: -1 | AU14: 0 | AV14: 0 | AW14: 0 | AX14: 0 | AY14: 0 | AZ14: 0 | BA14: 0 | BB14: 0 | BC14: 0 | BD14: 0 | BE14: 0 | BF14: 0 | BG14: 0 | BH14: 1 | BI14: 0 | BJ14: 0 | BK14: 0 | BL14: 0 | BM14: 0 | BN14: 0 | BO14: 0 | BP14: 0 | BQ14: 0 | BR14: 0 | BS14: 0 | BT14: 0 | BU14: 0 | BV14: 0 | BW14: 0 | BX14: 0 | BY14: 0 | BZ14: 0 | CA14: 0 | CB14: 0 | CC14: 0 | CD14: 0
A15: Semis 2 Match 2 | B15: 3098 | C15: 525 | D15: 3641 | E15: 2590 | F15: 2614 | G15: 708 | H15: 275 | I15: 461 | J15: 245 | K15: 461 | L15: 0 | M15: 30 | O15: 14 | P15: 0 | Q15: 0 | R15: 1 | S15: -1 | T15: 0 | U15: 0 | V15: 1 | W15: 0 | X15: 0 | Y15: 0 | Z15: 0 | AA15: -1 | AB15: 0 | AC15: 0 | AD15: 0 | AE15: 0 | AF15: 0 | AG15: 0 | AH15: 0 | AI15: 0 | AJ15: 0 | AK15: 0 | AL15: 0 | AM15: 0 | AN15: 0 | AO15: 0 | AP15: 0 | AQ15: 0 | AR15: 0 | AS15: 0 | AT15: -1 | AU15: 0 | AV15: 0 | AW15: 0 | AX15: 0 | AY15: 0 | AZ15: 0 | BA15: 0 | BB15: 0 | BC15: 0 | BD15: 0 | BE15: 0 | BF15: 0 | BG15: 0 | BH15: 1 | BI15: 0 | BJ15: 0 | BK15: 0 | BL15: 0 | BM15: 0 | BN15: 0 | BO15: 0 | BP15: 0 | BQ15: 0 | BR15: 0 | BS15: 0 | BT15: 0 | BU15: 0 | BV15: 0 | BW15: 0 | BX15: 0 | BY15: 0 | BZ15: 0 | CA15: 0 | CB15: =IF(($B15=CB$1)+($C15=CB$1)+($D15=CB$1),1,IF(($E15=CB$1)+($F15=CB$1)+($G15=CB$1),-1,0)) -> 0 | CC15: 0 | CD15: 0
A16: Finals 1 | B16: 2869 | C16: 2056 | D16: 1241 | E16: 2590 | F16: 2614 | G16: 708 | H16: 302 | I16: 420 | J16: 302 | K16: 415 | L16: 5 | M16: 0 | O16: 15 | P16: 1 | Q16: =IF(($B16=Q$1)+($C16=Q$1)+($D16=Q$1),1,IF(($E16=Q$1)+($F16=Q$1)+($G16=Q$1),-1,0)) -> 1 | R16: 0 | S16: -1 | T16: 0 | U16: 0 | V16: 0 | W16: 0 | X16: 0 | Y16: 0 | Z16: 0 | AA16: -1 | AB16: 0 | AC16: 0 | AD16: 0 | AE16: 0 | AF16: 0 | AG16: 0 | AH16: 0 | AI16: 0 | AJ16: 0 | AK16: 0 | AL16: 0 | AM16: 0 | AN16: 1 | AO16: 0 | AP16: 0 | AQ16: 0 | AR16: 0 | AS16: 0 | AT16: -1 | AU16: 0 | AV16: 0 | AW16: 0 | AX16: 0 | AY16: 0 | AZ16: 0 | BA16: 0 | BB16: 0 | BC16: 0 | BD16: 0 | BE16: 0 | BF16: 0 | BG16: 0 | BH16: 0 | BI16: 0 | BJ16: 0 | BK16: 0 | BL16: 0 | BM16: 0 | BN16: 0 | BO16: 0 | BP16: 0 | BQ16: 0 | BR16: 0 | BS16: 0 | BT16: 0 | BU16: 0 | BV16: 0 | BW16: 0 | BX16: 0 | BY16: 0 | BZ16: 0 | CA16: 0 | CB16: 0 | CC16: 0 | CD16: 0
A17: Finals 2 | B17: 2869 | C17: 2056 | D17: 1241 | E17: 2590 | F17: 2614 | G17: 708 | H17: 454 | I17: 292 | J17: 454 | K17: 292 | L17: 0 | M17: 0 | O17: 16 | P17: 1 | Q17: 1 | R17: 0 | S17: -1 | T17: 0 | U17: 0 | V17: 0 | W17: 0 | X17: 0 | Y17: 0 | Z17: 0 | AA17: -1 | AB17: 0 | AC17: 0 | AD17: 0 | AE17: 0 | AF17: 0 | AG17: 0 | AH17: 0 | AI17: 0 | AJ17: 0 | AK17: 0 | AL17: 0 | AM17: 0 | AN17: 1 | AO17: 0 | AP17: 0 | AQ17: 0 | AR17: 0 | AS17: 0 | AT17: -1 | AU17: 0 | AV17: 0 | AW17: 0 | AX17: 0 | AY17: 0 | AZ17: 0 | BA17: 0 | BB17: 0 | BC17: 0 | BD17: 0 | BE17: 0 | BF17: 0 | BG17: 0 | BH17: 0 | BI17: 0 | BJ17: 0 | BK17: 0 | BL17: 0 | BM17: 0 | BN17: 0 | BO17: 0 | BP17: 0 | BQ17: 0 | BR17: 0 | BS17: 0 | BT17: 0 | BU17: 0 | BV17: 0 | BW17: 0 | BX17: 0 | BY17: 0 | BZ17: 0 | CA17: 0 | CB17: 0 | CC17: 0 | CD17: 0
A18: Finals 3 | B18: 2869 | C18: 2056 | D18: 1241 | E18: 2590 | F18: 2614 | G18: 708 | H18: 367 | I18: 336 | J18: 362 | K18: 331 | L18: 5 | M18: 5 | O18: 17 | P18: 1 | Q18: 1 | R18: 0 | S18: -1 | T18: 0 | U18: 0 | V18: 0 | W18: 0 | X18: 0 | Y18: 0 | Z18: 0 | AA18: -1 | AB18: 0 | AC18: 0 | AD18: 0 | AE18: 0 | AF18: 0 | AG18: 0 | AH18: 0 | AI18: 0 | AJ18: 0 | AK18: 0 | AL18: 0 | AM18: 0 | AN18: 1 | AO18: 0 | AP18: 0 | AQ18: 0 | AR18: 0 | AS18: 0 | AT18: -1 | AU18: 0 | AV18: 0 | AW18: 0 | AX18: 0 | AY18: 0 | AZ18: 0 | BA18: 0 | BB18: 0 | BC18: 0 | BD18: 0 | BE18: 0 | BF18: 0 | BG18: 0 | BH18: 0 | BI18: 0 | BJ18: 0 | BK18: 0 | BL18: 0 | BM18: 0 | BN18: 0 | BO18: 0 | BP18: 0 | BQ18: 0 | BR18: 0 | BS18: 0 | BT18: 0 | BU18: 0 | BV18: 0 | BW18: 0 | BX18: 0 | BY18: 0 | BZ18: 0 | CA18: 0 | CB18: 0 | CC18: 0 | CD18: 0
